{"text_format":"1","workbook":"xlsx","n_sheets":4,"sheets":["Méthode de classement","Répartition","Tableau médailles","Récompenses Commandées"],"not_rendered":{"charts":0,"images":4,"macros":1,"external_links":0,"defined_names":2,"comments":0,"pivot_tables":0},"unopened":[],"bounds":{"document_bytes":16777216,"sheet_cells":100000,"rows_first":2000,"rows_last":500,"rows_between":2000,"halvings":0,"cell_chars":16384,"cell_head_chars":4096},"cells_cut":0,"cells_raw":0,"read":"whole","date_system":"1900"}

{"sheet":"Méthode de classement","index":0,"n_rows":39,"n_cols":4,"rows_kept":39,"cut":false,"hidden":false,"merged":[]}
[]
[]
["Fonction des différents onglets."]
[]
[null,"- Récompenses commandées."]
[null,null,"Cet onglet sert à vérifier que le nombre de récompenses reçues correspond bien à celui commandé"]
[]
[null,"- Répartition."]
[null,null,"Cet onglet sert à la ventilation et à la comptabilisation de toutes les récompenses entre les quatre clubs."]
[null,null,"Une fois cette répartition faite, elle est figée pour toute la durée du concours. Elle sera refaite l'année suivante"]
[null,null,"en fonction du nombre de récompenses commandées."]
[null,null,"ATTENTION : Le nombre de récompenses peu varié d'une fédération à l'autre. Quand on n'a que 4 médailles"]
[null,null,"d'une couleur celles-ci sont reparties entre les 4 clubs, une dans chaque catégorie. IL en est de même pour "]
[null,null,"les rubans et les diplômes.Ce qui conduit a avoir des palmarès différents en terme de contenu, mais"]
[null,null,"en nombre égal de récompenses."]
[]
[null,"-Tableau des médailles."]
[null,null,"Cet onglet sert pour l'établissement du palmarès qui doit être ordonné dans un ordre précis. Cet ordre est"]
[null,null,"imposé par le règlement du concours qui respecte les contraintes de patronage des différentes fédérations."]
[]
[null,null,"Cet ordre est le suivant :"]
[null,null,null,"1- Le meilleur auteur du salon."]
[null,null,null,"2- Les médailles d'Or dans l'ordre suivant : FIAP-PSA-GPU-ISF-FPF-FDT"]
[null,null,null,"3-  Les médailles d'Argent dans l'ordre suivant : FIAP-PSA-GPU-ISF-FPF-FDT"]
[null,null,null,"4-  Les médailles De bronze dans l'ordre suivant : FIAP-PSA-GPU-ISF-FPF-FDT"]
[null,null,null,"5- Les rubans dans l'ordre suivant FIAP-PSA-GPU."]
[null,null,null,"6- Les diplômes dans l'ordre suivant ISF-FPF-FDT"]
[null,null,null,"7- Les récompenses \"spéciales\" qui peuvent varier, en nombre, d'un club à l'autre."]
[]
[null,null,"Une fois ce tableau fait, il sera utilisé dans 4 classeurs \"Récompense\", un par club au moment de l'attribution"]
[null,null,"des récompenses après jugement il est donc impératif de conserver ce palmarès sur 3 colonnes dans l'ordre :"]
[null,null," \"Fédé\", \"Type de récompense\" et \"Catégorie\"."]
[]
[null,null,"Dans ce classeur je pense avoir suivi tes recommandations sur l'onglet \"Tableau médailles\" en :"]
[null,null,null,"1- Suppression des doublons dans les récompenses."]
[null,null,null,"2- Suppresion de la ligne 1."]
[null,null,null,"3- Ajout de la colonne \"Fédé\" pour les quatre clubs."]
[]
[null,null,"Mille mercis à toi."]

{"sheet":"Répartition","index":1,"n_rows":151,"n_cols":22,"rows_kept":151,"cut":false,"hidden":false,"merged":[[123,11,123,19],[143,11,146,11],[143,18,146,18],[143,19,146,19],[88,11,88,19],[104,11,107,11],[104,18,107,18],[104,19,107,19],[108,11,108,19],[119,11,122,11],[119,18,122,18],[119,19,122,19],[83,11,87,11],[83,18,87,18],[83,19,87,19],[12,15,12,16],[16,11,21,11],[16,18,21,18],[16,19,21,19],[22,11,22,19],[54,11,57,11],[54,18,57,18],[54,19,57,19],[58,11,58,19],[74,11,77,11],[74,18,77,18],[74,19,77,19],[78,11,78,19],[5,21,5,22],[6,21,6,22],[7,21,7,22],[8,21,8,22],[9,12,10,19],[9,21,9,22],[10,21,10,22],[1,2,1,9],[1,21,2,22],[3,2,4,3],[3,4,4,5],[3,6,4,7],[3,8,4,9],[3,21,3,22],[4,21,4,22]]}
[]
[null,null,"Récompense par club 2023",null,null,null,null,null,null,null,null,null,null,null,null,null,null,null,null,null,null,"Hiérarchie des\nfédérations"]
[]
[null,null,"Cub 1",null,"Club 2",null,"Club 3",null,"Club 4",null,null,null,null,null,null,null,null,null,null,null,null,"FIAP"]
[null,null,null,null,null,null,null,null,null,null,null,null,null,null,null,null,null,null,null,null,null,"PSA"]
[null,null,"Pin's / Trophée / C.C",{"$f":"COUNTIF($D$14:$D$151,\"*-*-*-*\")","v":5},"Pin's / Trophée / C.C",{"$f":"COUNTIF($F$14:$F$147,\"*-*-*-*\")","v":5},"Pin's / Trophée / C.C",{"$f":"COUNTIF($H$14:$H$147,\"*-*-*-*\")","v":5},"Pin's / Trophée / C.C",{"$f":"COUNTIF($J$14:$J$147,\"*-*-*-*\")","v":5},null,null,null,null,null,null,null,null,null,null,null,"GPU"]
[null,null,"Couleur",{"$f":"COUNTIF($D$14:$D$151,\"Couleur\")","v":37},"Couleur",{"$f":"COUNTIF($F$14:$F$149,\"Couleur\")","v":30},"Couleur",{"$f":"COUNTIF($H$14:$H$149,\"Couleur\")","v":32},"Couleur",{"$f":"COUNTIF($J$14:$J$149,\"Couleur\")","v":36},null,null,null,null,null,null,null,null,null,null,null,"FPF"]
[null,null,"Nature",{"$f":"COUNTIF($D$14:$D$151,\"Nature\")","v":36},"Nature",{"$f":"COUNTIF($F$14:$F$149,\"Nature\")","v":35},"Nature",{"$f":"COUNTIF($H$14:$H$149,\"Nature\")","v":29},"Nature",{"$f":"COUNTIF($J$14:$J$149,\"Nature\")","v":31},null,null,null,null,null,null,null,null,null,null,null,"ISF"]
[null,null,"Monochrome",{"$f":"COUNTIF($D$14:$D$151,\"Monochrome\")","v":31},"Monochrome",{"$f":"COUNTIF($F$14:$F$149,\"Monochrome\")","v":34},"Monochrome",{"$f":"COUNTIF($H$14:$H$149,\"Monochrome\")","v":34},"Monochrome",{"$f":"COUNTIF($J$14:$J$149,\"Monochrome\")","v":28},null,null,null,null,null,null,null,null,null,null,null,"FDT"]
[null,null,"Thème",{"$f":"COUNTIF($D$14:$D$151,\"Thème\")","v":29},"Thème",{"$f":"COUNTIF($F$14:$F$149,\"Thème\")","v":30},"Thème",{"$f":"COUNTIF($H$14:$H$149,\"Thème\")","v":34},"Thème",{"$f":"COUNTIF($J$14:$J$149,\"Thème\")","v":34},null,null,"Récompenses",null,null,null,null,null,null,null,null,"ISF"]
[null,null,"Total",{"$f":"SUM(D6:D10)","v":138},"Total",{"$f":"SUM(F6:F10)","v":134},"Total",{"$f":"SUM(H6:H10)","v":134},"Total",{"$f":"SUM(J6:J10)","v":134}]
[]
[null,null,"Type de récompense","Catégorie","Type de récompense","Catégorie","Type de récompense","Catégorie","Type de récompense","Catégorie",null,null,"Dotation","Prévu",null,"Réalisé",null,null,"Total","Vérif"]
[1,"FIAP","Pins FIAP au meilleur Auteur du Salon","*-*-*-*","Pins FIAP au meilleur Auteur du Salon","*-*-*-*","Pins FIAP au meilleur Auteur du Salon","*-*-*-*","Pins FIAP au meilleur Auteur du Salon","*-*-*-*",1]
[2,"FIAP","Médaille d'Or FIAP","Couleur","Médaille d'Or FIAP","Couleur","Médaille d'Or FIAP","Couleur","Médaille d'Or FIAP","Couleur",2]
[3,"FIAP","Médaille d'Or FIAP","Nature","Médaille d'Or FIAP","Nature","Médaille d'Or FIAP","Nature","Médaille d'Or FIAP","Nature",3]
[4,"FIAP","Médaille d'Or FIAP","Monochrome","Médaille d'Or FIAP","Monochrome","Médaille d'Or FIAP","Monochrome","Médaille d'Or FIAP","Monochrome",4,"FIAP","4 Pins",{"$f":"'Récompenses Commandées'!D8","v":4},null,{"$f":"COUNTIF($C$14:$J$54,\"Pins FIAP au meilleur Auteur du Salon\")","v":4},{"$f":"IF(N17=P17,\"OK\",\"KO\")","v":"OK"},null,{"$f":"SUM(P17:P22)","v":164},{"$f":"IF(S17='Récompenses Commandées'!J8,\"OK\",\"KO\")","v":"OK"}]
[5,"FIAP","Médaille d'Or FIAP","Thème","Médaille d'Or FIAP","Thème","Médaille d'Or FIAP","Thème","Médaille d'Or FIAP","Thème",5,null,"16 Or",{"$f":"'Récompenses Commandées'!E8","v":16},null,{"$f":"COUNTIF($C$14:$J$54,\"Médaille d'Or FIAP\")","v":16},"OK"]
[6,"FIAP","Médaille d'Argent FIAP","Couleur","Médaille d'Argent FIAP","Couleur","Médaille d'Argent FIAP","Couleur","Médaille d'Argent FIAP","Couleur",6,null,"16 Argent",{"$f":"'Récompenses Commandées'!F8","v":16},null,{"$f":"COUNTIF($C$14:$J$54,\"Médaille d'Argent FIAP\")","v":16},"OK"]
[7,"FIAP","Médaille d'Argent FIAP","Nature","Médaille d'Argent FIAP","Nature","Médaille d'Argent FIAP","Nature","Médaille d'Argent FIAP","Nature",7,null,"16 Bronze",{"$f":"'Récompenses Commandées'!G8","v":16},null,{"$f":"COUNTIF($C$14:$J$54,\"Médaille de Bronze FIAP\")","v":16},"OK"]
[8,"FIAP","Médaille d'Argent FIAP","Monochrome","Médaille d'Argent FIAP","Monochrome","Médaille d'Argent FIAP","Monochrome","Médaille d'Argent FIAP","Monochrome",8,null,"12 CC",12,null,{"$f":"COUNTIF($C$14:$J$54,\"Ruban FIAP coup de Cœur juge N°1\")+COUNTIF($C$14:$J$54,\"Ruban FIAP coup de Cœur juge N°2\")+COUNTIF($C$14:$J$54,\"Ruban FIAP coup de Cœur juge N°3\")","v":12},"OK"]
[9,"FIAP","Médaille d'Argent FIAP","Thème","Médaille d'Argent FIAP","Thème","Médaille d'Argent FIAP","Thème","Médaille d'Argent FIAP","Thème",9,null,"100 Rubans",{"$f":"'Récompenses Commandées'!$H$8-N21","v":100},null,{"$f":"COUNTIF($C$14:$J$54,\"Ruban FIAP\")","v":100},"OK"]
[10,"FIAP","Médaille de Bronze FIAP","Couleur","Médaille de Bronze FIAP","Couleur","Médaille de Bronze FIAP","Couleur","Médaille de Bronze FIAP","Couleur",10,"Zone FIAP de C14 à J57"]
[11,"FIAP","Médaille de Bronze FIAP","Nature","Médaille de Bronze FIAP","Nature","Médaille de Bronze FIAP","Nature","Médaille de Bronze FIAP","Nature",11]
[12,"FIAP","Médaille de Bronze FIAP","Monochrome","Médaille de Bronze FIAP","Monochrome","Médaille de Bronze FIAP","Monochrome","Médaille de Bronze FIAP","Monochrome",12]
[13,"FIAP","Médaille de Bronze FIAP","Thème","Médaille de Bronze FIAP","Thème","Médaille de Bronze FIAP","Thème","Médaille de Bronze FIAP","Thème",13]
[14,"FIAP","Ruban FIAP coup de Cœur juge N°1","*-*-*-*","Ruban FIAP coup de Cœur juge N°1","*-*-*-*","Ruban FIAP coup de Cœur juge N°1","*-*-*-*","Ruban FIAP coup de Cœur juge N°1","*-*-*-*",14]
[15,"FIAP","Ruban FIAP coup de Cœur juge N°2","*-*-*-*","Ruban FIAP coup de Cœur juge N°2","*-*-*-*","Ruban FIAP coup de Cœur juge N°2","*-*-*-*","Ruban FIAP coup de Cœur juge N°2","*-*-*-*",15]
[16,"FIAP","Ruban FIAP coup de Cœur juge N°3","*-*-*-*","Ruban FIAP coup de Cœur juge N°3","*-*-*-*","Ruban FIAP coup de Cœur juge N°3","*-*-*-*","Ruban FIAP coup de Cœur juge N°3","*-*-*-*",16]
[17,"FIAP","Ruban FIAP","Couleur","Ruban FIAP","Couleur","Ruban FIAP","Couleur","Ruban FIAP","Couleur",17]
[18,"FIAP","Ruban FIAP","Nature","Ruban FIAP","Nature","Ruban FIAP","Nature","Ruban FIAP","Nature",18]
[19,"FIAP","Ruban FIAP","Monochrome","Ruban FIAP","Monochrome","Ruban FIAP","Monochrome","Ruban FIAP","Monochrome",19]
[20,"FIAP","Ruban FIAP","Thème","Ruban FIAP","Thème","Ruban FIAP","Thème","Ruban FIAP","Thème",20]
[21,"FIAP","Ruban FIAP","Couleur","Ruban FIAP","Couleur","Ruban FIAP","Couleur","Ruban FIAP","Couleur",21]
[22,"FIAP","Ruban FIAP","Nature","Ruban FIAP","Nature","Ruban FIAP","Nature","Ruban FIAP","Nature",22]
[23,"FIAP","Ruban FIAP","Monochrome","Ruban FIAP","Monochrome","Ruban FIAP","Monochrome","Ruban FIAP","Monochrome",23]
[24,"FIAP","Ruban FIAP","Thème","Ruban FIAP","Thème","Ruban FIAP","Thème","Ruban FIAP","Thème",24]
[25,"FIAP","Ruban FIAP","Couleur","Ruban FIAP","Couleur","Ruban FIAP","Couleur","Ruban FIAP","Couleur",25]
[26,"FIAP","Ruban FIAP","Nature","Ruban FIAP","Nature","Ruban FIAP","Nature","Ruban FIAP","Nature",26]
[27,"FIAP","Ruban FIAP","Monochrome","Ruban FIAP","Monochrome","Ruban FIAP","Monochrome","Ruban FIAP","Monochrome",27]
[28,"FIAP","Ruban FIAP","Thème","Ruban FIAP","Thème","Ruban FIAP","Thème","Ruban FIAP","Thème",28]
[29,"FIAP","Ruban FIAP","Couleur","Ruban FIAP","Couleur","Ruban FIAP","Couleur","Ruban FIAP","Couleur",29]
[30,"FIAP","Ruban FIAP","Nature","Ruban FIAP","Nature","Ruban FIAP","Nature","Ruban FIAP","Nature",30]
[31,"FIAP","Ruban FIAP","Monochrome","Ruban FIAP","Monochrome","Ruban FIAP","Monochrome","Ruban FIAP","Monochrome",31]
[32,"FIAP","Ruban FIAP","Thème","Ruban FIAP","Thème","Ruban FIAP","Thème","Ruban FIAP","Thème",32]
[33,"FIAP","Ruban FIAP","Couleur","Ruban FIAP","Couleur","Ruban FIAP","Couleur","Ruban FIAP","Couleur",33]
[34,"FIAP","Ruban FIAP","Couleur","Ruban FIAP","Couleur","Ruban FIAP","Couleur","Ruban FIAP","Couleur",34]
[35,"FIAP","Ruban FIAP","Nature","Ruban FIAP","Nature","Ruban FIAP","Nature","Ruban FIAP","Nature",35]
[36,"FIAP","Ruban FIAP","Monochrome","Ruban FIAP","Monochrome","Ruban FIAP","Monochrome","Ruban FIAP","Monochrome",36]
[37,"FIAP","Ruban FIAP","Thème","Ruban FIAP","Thème","Ruban FIAP","Thème","Ruban FIAP","Thème",37]
[38,"FIAP","Ruban FIAP","Couleur","Ruban FIAP","Couleur","Ruban FIAP","Couleur","Ruban FIAP","Couleur",38]
[39,"FIAP","Ruban FIAP","Nature","Ruban FIAP","Nature","Ruban FIAP","Nature","Ruban FIAP","Nature",39]
[40,"FIAP","Ruban FIAP","Monochrome","Ruban FIAP","Monochrome","Ruban FIAP","Monochrome","Ruban FIAP","Monochrome",40]
[41,"FIAP","Ruban FIAP","Thème","Ruban FIAP","Thème","Ruban FIAP","Thème","Ruban FIAP","Thème",41]
[1,"PSA","Médaille d'Or PSA","Couleur","Médaille d'Or PSA","Couleur","Médaille d'Or PSA","Couleur","Médaille d'Or PSA","Couleur",42,"PSA","16 Or",{"$f":"'Récompenses Commandées'!E9","v":16},null,{"$f":"COUNTIF($C$55:$J$74,\"Médaille d'Or PSA\")","v":16},{"$f":"IF(N55=P55,\"OK\",\"KO\")","v":"OK"},null,{"$f":"SUM(P55:P58)","v":80},{"$f":"IF(S55='Récompenses Commandées'!J9,\"OK\",\"KO\")","v":"OK"}]
[2,"PSA","Médaille d'Or PSA","Nature","Médaille d'Or PSA","Nature","Médaille d'Or PSA","Nature","Médaille d'Or PSA","Nature",43,null,"16 Argent",{"$f":"'Récompenses Commandées'!F9","v":16},null,{"$f":"COUNTIF($C$55:$J$74,\"Médaille d'Argent PSA\")","v":16},"OK"]
[3,"PSA","Médaille d'Or PSA","Monochrome","Médaille d'Or PSA","Monochrome","Médaille d'Or PSA","Monochrome","Médaille d'Or PSA","Monochrome",44,null,"16 Bronze",{"$f":"'Récompenses Commandées'!G9","v":16},null,{"$f":"COUNTIF($C$55:$J$74,\"Médaille de Bronze PSA\")","v":16},"OK"]
[4,"PSA","Médaille d'Or PSA","Thème","Médaille d'Or PSA","Thème","Médaille d'Or PSA","Thème","Médaille d'Or PSA","Thème",45,null,"128 Rubans",{"$f":"'Récompenses Commandées'!H9","v":32},null,{"$f":"COUNTIF($C$55:$J$74,\"Ruban PSA\")","v":32},"OK"]
[5,"PSA","Médaille d'Argent PSA","Couleur","Médaille d'Argent PSA","Couleur","Médaille d'Argent PSA","Couleur","Médaille d'Argent PSA","Couleur",46,"Zone PSA C58 à J77"]
[6,"PSA","Médaille d'Argent PSA","Nature","Médaille d'Argent PSA","Nature","Médaille d'Argent PSA","Nature","Médaille d'Argent PSA","Nature",47]
[7,"PSA","Médaille d'Argent PSA","Monochrome","Médaille d'Argent PSA","Monochrome","Médaille d'Argent PSA","Monochrome","Médaille d'Argent PSA","Monochrome",48]
[8,"PSA","Médaille d'Argent PSA","Thème","Médaille d'Argent PSA","Thème","Médaille d'Argent PSA","Thème","Médaille d'Argent PSA","Thème",49]
[9,"PSA","Médaille de Bronze PSA","Couleur","Médaille de Bronze PSA","Couleur","Médaille de Bronze PSA","Couleur","Médaille de Bronze PSA","Couleur",50]
[10,"PSA","Médaille de Bronze PSA","Nature","Médaille de Bronze PSA","Nature","Médaille de Bronze PSA","Nature","Médaille de Bronze PSA","Nature",51]
[11,"PSA","Médaille de Bronze PSA","Monochrome","Médaille de Bronze PSA","Monochrome","Médaille de Bronze PSA","Monochrome","Médaille de Bronze PSA","Monochrome",52]
[12,"PSA","Médaille de Bronze PSA","Thème","Médaille de Bronze PSA","Thème","Médaille de Bronze PSA","Thème","Médaille de Bronze PSA","Thème",53]
[13,"PSA","Ruban PSA","Couleur","Ruban PSA","Couleur","Ruban PSA","Couleur","Ruban PSA","Couleur",54]
[14,"PSA","Ruban PSA","Nature","Ruban PSA","Nature","Ruban PSA","Nature","Ruban PSA","Nature",55]
[15,"PSA","Ruban PSA","Monochrome","Ruban PSA","Monochrome","Ruban PSA","Monochrome","Ruban PSA","Monochrome",56]
[16,"PSA","Ruban PSA","Thème","Ruban PSA","Thème","Ruban PSA","Thème","Ruban PSA","Thème",57]
[17,"PSA","Ruban PSA","Couleur","Ruban PSA","Couleur","Ruban PSA","Couleur","Ruban PSA","Couleur",58]
[18,"PSA","Ruban PSA","Nature","Ruban PSA","Nature","Ruban PSA","Nature","Ruban PSA","Nature",59]
[19,"PSA","Ruban PSA","Monochrome","Ruban PSA","Monochrome","Ruban PSA","Monochrome","Ruban PSA","Monochrome",60]
[20,"PSA","Ruban PSA","Thème","Ruban PSA","Thème","Ruban PSA","Thème","Ruban PSA","Thème",61]
[1,"GPU","Médaille d'Or GPU","Couleur","Médaille d'Or GPU","Nature","Médaille d'Or GPU","Monochrome","Médaille d'Or GPU","Thème",62,"GPU","4 Or",{"$f":"'Récompenses Commandées'!E10","v":4},null,{"$f":"COUNTIF($C$75:$J$83,\"Médaille d'Or GPU\")","v":4},{"$f":"IF(N75=P75,\"OK\",\"KO\")","v":"OK"},null,{"$f":"SUM(P75:P78)","v":36},{"$f":"IF(S75='Récompenses Commandées'!J10,\"OK\",\"KO\")","v":"OK"}]
[2,"GPU","Médaille d'Argent GPU","Nature","Médaille d'Argent GPU","Monochrome","Médaille d'Argent GPU","Thème","Médaille d'Argent GPU","Couleur",63,null,"4 Argent",{"$f":"'Récompenses Commandées'!F10","v":4},null,{"$f":"COUNTIF($C$75:$J$83,\"Médaille d'Argent GPU\")","v":4},"OK"]
[3,"GPU","Médaille de Bronze GPU","Monochrome","Médaille de Bronze GPU","Thème","Médaille de Bronze GPU","Couleur","Médaille de Bronze GPU","Nature",64,null,"4 Bronze",{"$f":"'Récompenses Commandées'!G10","v":4},null,{"$f":"COUNTIF($C$75:$J$83,\"Médaille de Bronze GPU\")","v":4},"OK"]
[4,"GPU","Ruban GPU","Couleur","Ruban GPU","Couleur","Ruban GPU","Couleur","Ruban GPU","Couleur",65,null,"32 Rubans",{"$f":"'Récompenses Commandées'!H10","v":24},null,{"$f":"COUNTIF($C$75:$J$83,\"Ruban GPU\")","v":24},"OK"]
[5,"GPU","Ruban GPU","Nature","Ruban GPU","Nature","Ruban GPU","Nature","Ruban GPU","Nature",66,"Zone GPU C78à J86"]
[6,"GPU","Ruban GPU","Monochrome","Ruban GPU","Monochrome","Ruban GPU","Monochrome","Ruban GPU","Monochrome",67]
[7,"GPU","Ruban GPU","Thème","Ruban GPU","Thème","Ruban GPU","Thème","Ruban GPU","Thème",68]
[8,"GPU","Ruban GPU","Couleur","Ruban GPU","Couleur","Ruban GPU","Couleur","Ruban GPU","Couleur",69]
[9,"GPU","Ruban GPU","Nature","Ruban GPU","Nature","Ruban GPU","Nature","Ruban GPU","Nature",70]
[1,"FPF","Trophée FPF : Meilleur Auteur français","*-*-*-*","Trophée FPF : Meilleur Auteur français","*-*-*-*","Trophée FPF : Meilleur Auteur français","*-*-*-*","Trophée FPF : Meilleur Auteur français","*-*-*-*",71,"FPF","4 Trophées",4,null,{"$f":"COUNTIF($C$84:$J$104,\"Trophée FPF : Meilleur Auteur français\")","v":4},{"$f":"IF(N84=P84,\"OK\",\"KO\")","v":"OK"},null,{"$f":"SUM(P84:P88)","v":84},{"$f":"IF(S84='Récompenses Commandées'!J7,\"OK\",\"KO\")","v":"OK"}]
[2,"FPF","Médaille d'Or FPF","Couleur","Médaille d'Or FPF","Nature","Médaille d'Or FPF","Monochrome","Médaille d'Or FPF","Thème",72,null,"8 Or",{"$f":"'Récompenses Commandées'!$E$7","v":8},null,{"$f":"COUNTIF($C$84:$J$104,\"Médaille d'Or FPF\")","v":8},"OK"]
[3,"FPF","Médaille d'Or FPF","Nature","Médaille d'Or FPF","Monochrome","Médaille d'Or FPF","Thème","Médaille d'Or FPF","Couleur",73,null,"8 Argent",{"$f":"'Récompenses Commandées'!$F$7","v":8},null,{"$f":"COUNTIF($C$84:$J$104,\"Médaille d'Argent FPF\")","v":8},"OK"]
[4,"FPF","Médaille d'Argent FPF","Couleur","Médaille d'Argent FPF","Nature","Médaille d'Argent FPF","Monochrome","Médaille d'Argent FPF","Thème",74,null,"8 Bronze",{"$f":"'Récompenses Commandées'!$G$7","v":8},null,{"$f":"COUNTIF($C$84:$J$104,\"Médaille de Bronze FPF\")","v":8},"OK"]
[5,"FPF","Médaille d'Argent FPF","Nature","Médaille d'Argent FPF","Monochrome","Médaille d'Argent FPF","Thème","Médaille d'Argent FPF","Couleur",75,null,"56 Diplômes",{"$f":"'Récompenses Commandées'!$I$7","v":56},null,{"$f":"COUNTIF($C$84:$J$104,\"Diplôme FPF\")","v":56},"OK"]
[6,"FPF","Médaille de Bronze FPF","Couleur","Médaille de Bronze FPF","Nature","Médaille de Bronze FPF","Monochrome","Médaille de Bronze FPF","Thème",76,"Zone FPF C87à J107"]
[7,"FPF","Médaille de Bronze FPF","Nature","Médaille de Bronze FPF","Monochrome","Médaille de Bronze FPF","Thème","Médaille de Bronze FPF","Couleur",77]
[8,"FPF","Diplôme FPF","Couleur","Diplôme FPF","Couleur","Diplôme FPF","Couleur","Diplôme FPF","Couleur",78]
[9,"FPF","Diplôme FPF","Nature","Diplôme FPF","Nature","Diplôme FPF","Nature","Diplôme FPF","Nature",79]
[10,"FPF","Diplôme FPF","Monochrome","Diplôme FPF","Monochrome","Diplôme FPF","Monochrome","Diplôme FPF","Monochrome",80]
[11,"FPF","Diplôme FPF","Thème","Diplôme FPF","Thème","Diplôme FPF","Thème","Diplôme FPF","Thème",81]
[12,"FPF","Diplôme FPF","Couleur","Diplôme FPF","Couleur","Diplôme FPF","Couleur","Diplôme FPF","Couleur",82]
[13,"FPF","Diplôme FPF","Nature","Diplôme FPF","Nature","Diplôme FPF","Nature","Diplôme FPF","Nature",83]
[14,"FPF","Diplôme FPF","Monochrome","Diplôme FPF","Monochrome","Diplôme FPF","Monochrome","Diplôme FPF","Monochrome",84]
[15,"FPF","Diplôme FPF","Thème","Diplôme FPF","Thème","Diplôme FPF","Thème","Diplôme FPF","Thème",85]
[16,"FPF","Diplôme FPF","Couleur","Diplôme FPF","Couleur","Diplôme FPF","Couleur","Diplôme FPF","Couleur",86]
[17,"FPF","Diplôme FPF","Nature","Diplôme FPF","Nature","Diplôme FPF","Nature","Diplôme FPF","Nature",87]
[18,"FPF","Diplôme FPF","Monochrome","Diplôme FPF","Monochrome","Diplôme FPF","Monochrome","Diplôme FPF","Monochrome",88]
[19,"FPF","Diplôme FPF","Thème","Diplôme FPF","Thème","Diplôme FPF","Thème","Diplôme FPF","Thème",89]
[20,"FPF","Diplôme FPF","Couleur","Diplôme FPF","Nature","Diplôme FPF","Monochrome","Diplôme FPF","Thème",90]
[21,"FPF","Diplôme FPF","Nature","Diplôme FPF","Monochrome","Diplôme FPF","Thème","Diplôme FPF","Couleur",91]
[1,"ISF","Médaille d'Or ISF","Couleur","Médaille d'Or ISF","Nature","Médaille d'Or ISF","Monochrome","Médaille d'Or ISF","Thème",92,"ISF","4 Or",{"$f":"'Récompenses Commandées'!$E$11","v":4},null,{"$f":"COUNTIF($C$105:$J$119,\"Médaille d'Or ISF\")","v":4},{"$f":"IF(N105=P105,\"OK\",\"KO\")","v":"OK"},null,{"$f":"SUM(P105:P108)","v":60},{"$f":"IF(S105='Récompenses Commandées'!J11,\"OK\",\"KO\")","v":"OK"}]
[2,"ISF","Médaille d'Argent ISF","Nature","Médaille d'Argent ISF","Monochrome","Médaille d'Argent ISF","Thème","Médaille d'Argent ISF","Couleur",93,null,"4 Argent",{"$f":"'Récompenses Commandées'!$F$11","v":4},null,{"$f":"COUNTIF($C$105:$J$119,\"Médaille d'Argent ISF\")","v":4},"OK"]
[3,"ISF","Médaille de Bronze ISF","Monochrome","Médaille de Bronze ISF","Thème","Médaille de Bronze ISF","Couleur","Médaille de Bronze ISF","Nature",94,null,"4 Bronze",{"$f":"'Récompenses Commandées'!$G$11","v":4},null,{"$f":"COUNTIF($C$105:$J$119,\"Médaille de Bronze ISF\")","v":4},"OK"]
[4,"ISF","Diplôme ISF","Couleur","Diplôme ISF","Couleur","Diplôme ISF","Couleur","Diplôme ISF","Couleur",95,null,"24 Diplômes",{"$f":"'Récompenses Commandées'!$I$11","v":48},null,{"$f":"COUNTIF($C$105:$J$119,\"Diplôme ISF\")","v":48},"OK"]
[5,"ISF","Diplôme ISF","Nature","Diplôme ISF","Nature","Diplôme ISF","Nature","Diplôme ISF","Nature",96,"Zone ISF C108 à J122"]
[6,"ISF","Diplôme ISF","Monochrome","Diplôme ISF","Monochrome","Diplôme ISF","Monochrome","Diplôme ISF","Monochrome",97]
[7,"ISF","Diplôme ISF","Thème","Diplôme ISF","Thème","Diplôme ISF","Thème","Diplôme ISF","Thème",98]
[8,"ISF","Diplôme ISF","Couleur","Diplôme ISF","Couleur","Diplôme ISF","Couleur","Diplôme ISF","Couleur",99]
[9,"ISF","Diplôme ISF","Nature","Diplôme ISF","Nature","Diplôme ISF","Nature","Diplôme ISF","Nature",100]
[10,"ISF","Diplôme ISF","Monochrome","Diplôme ISF","Monochrome","Diplôme ISF","Monochrome","Diplôme ISF","Monochrome",101]
[11,"ISF","Diplôme ISF","Thème","Diplôme ISF","Thème","Diplôme ISF","Thème","Diplôme ISF","Thème",102]
[12,"ISF","Diplôme ISF","Couleur","Diplôme ISF","Couleur","Diplôme ISF","Couleur","Diplôme ISF","Couleur",103]
[13,"ISF","Diplôme ISF","Nature","Diplôme ISF","Nature","Diplôme ISF","Nature","Diplôme ISF","Nature",104]
[14,"ISF","Diplôme ISF","Monochrome","Diplôme ISF","Monochrome","Diplôme ISF","Monochrome","Diplôme ISF","Monochrome",105]
[15,"ISF","Diplôme ISF","Thème","Diplôme ISF","Thème","Diplôme ISF","Thème","Diplôme ISF","Thème",106]
[1,"FDT","Médaille d'Or FDT","Couleur","Médaille d'Or FDT","Couleur","Médaille d'Or FDT","Couleur","Médaille d'Or FDT","Couleur",107,"FDT","4 Or",{"$f":"'Récompenses Commandées'!$E$12","v":16},null,{"$f":"COUNTIF($C$120:$J$143,\"Médaille d'Or FDT\")","v":16},{"$f":"IF(N120=P120,\"OK\",\"KO\")","v":"OK"},null,{"$f":"SUM(P120:P123)","v":96},{"$f":"IF(S120='Récompenses Commandées'!J12,\"OK\",\"KO\")","v":"OK"}]
[2,"FDT","Médaille d'Or FDT","Nature","Médaille d'Or FDT","Nature","Médaille d'Or FDT","Nature","Médaille d'Or FDT","Nature",108,null,"4 Argent",{"$f":"'Récompenses Commandées'!$F$12","v":16},null,{"$f":"COUNTIF($C$120:$J$143,\"Médaille d'Argent FDT\")","v":16},"OK"]
[3,"FDT","Médaille d'Or FDT","Monochrome","Médaille d'Or FDT","Monochrome","Médaille d'Or FDT","Monochrome","Médaille d'Or FDT","Monochrome",109,null,"4 Bronze",{"$f":"'Récompenses Commandées'!$G$12","v":16},null,{"$f":"COUNTIF($C$120:$J$143,\"Médaille de Bronze FDT\")","v":16},"OK"]
[4,"FDT","Médaille d'Or FDT","Thème","Médaille d'Or FDT","Thème","Médaille d'Or FDT","Thème","Médaille d'Or FDT","Thème",110,null,"48 Diplômes",{"$f":"'Récompenses Commandées'!$I$12","v":48},null,{"$f":"COUNTIF($C$120:$J$143,\"Diplôme FDT\")","v":48},"OK"]
[5,"FDT","Médaille d'Argent FDT","Couleur","Médaille d'Argent FDT","Couleur","Médaille d'Argent FDT","Couleur","Médaille d'Argent FDT","Couleur",111,"Zone FDt C123 à J146"]
[6,"FDT","Médaille d'Argent FDT","Nature","Médaille d'Argent FDT","Nature","Médaille d'Argent FDT","Nature","Médaille d'Argent FDT","Nature",112]
[7,"FDT","Médaille d'Argent FDT","Monochrome","Médaille d'Argent FDT","Monochrome","Médaille d'Argent FDT","Monochrome","Médaille d'Argent FDT","Monochrome",113]
[8,"FDT","Médaille d'Argent FDT","Thème","Médaille d'Argent FDT","Thème","Médaille d'Argent FDT","Thème","Médaille d'Argent FDT","Thème",114]
[9,"FDT","Médaille de Bronze FDT","Couleur","Médaille de Bronze FDT","Couleur","Médaille de Bronze FDT","Couleur","Médaille de Bronze FDT","Couleur",115]
[10,"FDT","Médaille de Bronze FDT","Nature","Médaille de Bronze FDT","Nature","Médaille de Bronze FDT","Nature","Médaille de Bronze FDT","Nature",116]
[11,"FDT","Médaille de Bronze FDT","Monochrome","Médaille de Bronze FDT","Monochrome","Médaille de Bronze FDT","Monochrome","Médaille de Bronze FDT","Monochrome",117]
[12,"FDT","Médaille de Bronze FDT","Thème","Médaille de Bronze FDT","Thème","Médaille de Bronze FDT","Thème","Médaille de Bronze FDT","Thème",118]
[13,"FDT","Diplôme FDT","Couleur","Diplôme FDT","Couleur","Diplôme FDT","Couleur","Diplôme FDT","Couleur",119]
[14,"FDT","Diplôme FDT","Nature","Diplôme FDT","Nature","Diplôme FDT","Nature","Diplôme FDT","Nature",120]
[15,"FDT","Diplôme FDT","Monochrome","Diplôme FDT","Monochrome","Diplôme FDT","Monochrome","Diplôme FDT","Monochrome",121]
[16,"FDT","Diplôme FDT","Thème","Diplôme FDT","Thème","Diplôme FDT","Thème","Diplôme FDT","Thème",122]
[17,"FDT","Diplôme FDT","Couleur","Diplôme FDT","Couleur","Diplôme FDT","Couleur","Diplôme FDT","Couleur",123]
[18,"FDT","Diplôme FDT","Nature","Diplôme FDT","Nature","Diplôme FDT","Nature","Diplôme FDT","Nature",124]
[19,"FDT","Diplôme FDT","Monochrome","Diplôme FDT","Monochrome","Diplôme FDT","Monochrome","Diplôme FDT","Monochrome",125]
[20,"FDT","Diplôme FDT","Thème","Diplôme FDT","Thème","Diplôme FDT","Thème","Diplôme FDT","Thème",126]
[21,"FDT","Diplôme FDT","Couleur","Diplôme FDT","Couleur","Diplôme FDT","Couleur","Diplôme FDT","Couleur",127]
[22,"FDT","Diplôme FDT","Nature","Diplôme FDT","Nature","Diplôme FDT","Nature","Diplôme FDT","Nature",128]
[23,"FDT","Diplôme FDT","Monochrome","Diplôme FDT","Monochrome","Diplôme FDT","Monochrome","Diplôme FDT","Monochrome",129]
[24,"FDT","Diplôme FDT","Thème","Diplôme FDT","Thème","Diplôme FDT","Thème","Diplôme FDT","Thème",130]
[1,"Spéciale","Diplôme U.R 06","Couleur","Médaille du Conseil Régional","Couleur","Médaille de La Gacily","Couleur","Diplôme FDT : Prix ACBM","Couleur",1,"Spéciale","LEG",{"$f":"'Récompenses Commandées'!$E$14","v":8},null,4,{"$f":"IF(N144=P144,\"OK\",\"KO\")","v":"KO"},null,{"$f":"SUM(P144:P148)","v":16},{"$f":"IF(S144='Récompenses Commandées'!J14,\"OK\",\"KO\")","v":"KO"}]
[2,"Spéciale","Diplôme U.R 06","Nature","Médaille du Conseil Régional","Nature","Médaille de La Gacily","Nature","Diplôme FDT : Prix P.C Bagnols Marcoule","Nature",2,null,"SAC",{"$f":"'Récompenses Commandées'!$F$14","v":4},null,4,"OK"]
[3,"Spéciale","Diplôme U.R 06","Monochrome","Médaille du Conseil Régional","Monochrome","Médaille de La Gacily","Monochrome","Médaille prix du Conseil Général  du Gard","Monochrome",3,null,"SMC",{"$f":"'Récompenses Commandées'!$G$14","v":4},null,4,"OK"]
[4,"Spéciale","Diplôme U.R 06","Thème","Médaille du Conseil Régional","Thème","Médaille de La Gacily","Thème","Médaille prix de la ville de Saint Gervais","Thème",4,null,"BAG",{"$f":"'Récompenses Commandées'!$H$14","v":4},null,4,"OK"]
[null,"Spéciale","Médaille Région Pays de la Loire","Couleur"]
[null,"Spéciale","Médaille Crédit Mutuel Legé","Nature",null,null,null,null,null,null,null,null,null,null,null,null,null,null,{"$f":"S120+S105+S84+S75+S55+S17+S144","v":536}]
[null,"Spéciale","Médaille de la Ville de Legé","Monochrome"]
[null,"Spéciale","Médaille de la Ville de Legé","Thème"]

{"sheet":"Tableau médailles","index":2,"n_rows":146,"n_cols":24,"rows_kept":146,"cut":false,"hidden":false,"merged":[[8,18,9,20],[0,3,0,16],[2,3,3,4],[2,7,3,8],[2,11,3,12],[2,15,3,16]]}
[null,null,null,"Récompense par club"]
[]
[null,null,null,"Club 1",null,null,null,"Club 2",null,null,null,"Club 3",null,null,null,"Club 4"]
[]
[null,null,null,"Pin's / Trophée / C.C",{"$f":"COUNTIF($E$13:$E$150,\"*-*-*-*\")","v":2},null,null,"Pin's / Trophée / C.C",{"$f":"COUNTIF($I$13:$I$146,\"*-*-*-*\")","v":5},null,null,"Pin's / Trophée / C.C",{"$f":"COUNTIF($M$13:$M$146,\"*-*-*-*\")","v":5},null,null,"Pin's / Trophée / C.C",{"$f":"COUNTIF($Q$13:$Q$146,\"*-*-*-*\")","v":5}]
[null,null,null,"Couleur",{"$f":"COUNTIF($E$13:$E$150,\"Couleur\")","v":3},null,null,"Couleur",{"$f":"COUNTIF($I$13:$I$152,\"Couleur\")","v":30},null,null,"Couleur",{"$f":"COUNTIF($M$13:$M$152,\"Couleur\")","v":33},null,null,"Couleur",{"$f":"COUNTIF($Q$13:$Q$152,\"Couleur\")","v":36}]
[null,null,null,"Nature",{"$f":"COUNTIF($E$13:$E$150,\"Nature\")","v":3},null,null,"Nature",{"$f":"COUNTIF($I$13:$I$152,\"Nature\")","v":35},null,null,"Nature",{"$f":"COUNTIF($M$13:$M$152,\"Nature\")","v":28},null,null,"Nature",{"$f":"COUNTIF($Q$13:$Q$152,\"Nature\")","v":31}]
[null,null,null,"Monochrome",{"$f":"COUNTIF($E$13:$E$150,\"Monochrome\")","v":3},null,null,"Monochrome",{"$f":"COUNTIF($I$13:$I$152,\"Monochrome\")","v":34},null,null,"Monochrome",{"$f":"COUNTIF($M$13:$M$152,\"Monochrome\")","v":34},null,null,"Monochrome",{"$f":"COUNTIF($Q$13:$Q$152,\"Monochrome\")","v":28}]
[null,null,null,"Thème",{"$f":"COUNTIF($E$13:$E$150,\"Thème\")","v":4},null,null,"Thème",{"$f":"COUNTIF($I$13:$I$152,\"Thème\")","v":30},null,null,"Thème",{"$f":"COUNTIF($M$13:$M$152,\"Thème\")","v":34},null,null,"Thème",{"$f":"COUNTIF($Q$13:$Q$152,\"Thème\")","v":34},null,"Ordre voulu"]
[null,null,null,"Total",{"$f":"SUM(E5:E9)","v":15},null,null,"Total",{"$f":"SUM(I5:I9)","v":134},null,null,"Total",{"$f":"SUM(M5:M9)","v":134},null,null,"Total",{"$f":"SUM(Q5:Q9)","v":134}]
[]
[null,null,"Fédé","Type de récompense","Catégorie",null,"Fédé","Type de récompense","Catégorie",null,"Fédé","Type de récompense","Catégorie",null,"Fédé","Type de récompense","Catégorie",null,"Fédé","Type de récompense","Catégorie",null,"Type de récompense & Catégorie","code"]
[1,null,"Spéciale","Diplôme FDT : Prix ACBM","Couleur",null,"FIAP",{"$f":"Répartition!E14","v":"Pins FIAP au meilleur Auteur du Salon"},{"$f":"Répartition!F14","v":"*-*-*-*"},null,"FIAP",{"$f":"Répartition!G14","v":"Pins FIAP au meilleur Auteur du Salon"},{"$f":"Répartition!H14","v":"*-*-*-*"},null,"FIAP",{"$f":"Répartition!I14","v":"Pins FIAP au meilleur Auteur du Salon"},{"$f":"Répartition!J14","v":"*-*-*-*"},null,"FIAP","Pins FIAP au meilleur Auteur du Salon","*-*-*-*",null,{"$f":"T13&U13","v":"Pins FIAP au meilleur Auteur du Salon*-*-*-*"},1]
[2,null,"Spéciale","Diplôme FDT : Prix P.C Bagnols Marcoule","Nature",null,"FIAP",{"$f":"Répartition!E15","v":"Médaille d'Or FIAP"},{"$f":"Répartition!F15","v":"Couleur"},null,"FIAP",{"$f":"Répartition!G15","v":"Médaille d'Or FIAP"},{"$f":"Répartition!H15","v":"Couleur"},null,"FIAP",{"$f":"Répartition!I15","v":"Médaille d'Or FIAP"},{"$f":"Répartition!J15","v":"Couleur"},null,"FIAP","Médaille d'Or FIAP","Couleur",null,{"$f":"T14&U14","v":"Médaille d'Or FIAPCouleur"},2]
[3,null,"Spéciale","Médaille de La Gacily","Thème",null,"FIAP",{"$f":"Répartition!E16","v":"Médaille d'Or FIAP"},{"$f":"Répartition!F16","v":"Nature"},null,"FIAP",{"$f":"Répartition!G16","v":"Médaille d'Or FIAP"},"Couleur",null,"FIAP",{"$f":"Répartition!I16","v":"Médaille d'Or FIAP"},{"$f":"Répartition!J16","v":"Nature"},null,"FIAP","Médaille d'Or FIAP","Nature",null,"Médaille d'Or FIAPNature",3]
[4,null,"FIAP","Médaille d'Or FIAP","Couleur",null,"FIAP",{"$f":"Répartition!E17","v":"Médaille d'Or FIAP"},{"$f":"Répartition!F17","v":"Monochrome"},null,"FIAP",{"$f":"Répartition!G17","v":"Médaille d'Or FIAP"},{"$f":"Répartition!H17","v":"Monochrome"},null,"FIAP",{"$f":"Répartition!I17","v":"Médaille d'Or FIAP"},{"$f":"Répartition!J17","v":"Monochrome"},null,"FIAP","Médaille d'Or FIAP","Monochrome",null,"Médaille d'Or FIAPMonochrome",4]
[5,null,"FIAP","Médaille d'Or FIAP","Monochrome",null,"FIAP",{"$f":"Répartition!E18","v":"Médaille d'Or FIAP"},{"$f":"Répartition!F18","v":"Thème"},null,"FIAP",{"$f":"Répartition!G18","v":"Médaille d'Or FIAP"},{"$f":"Répartition!H18","v":"Thème"},null,"FIAP",{"$f":"Répartition!I18","v":"Médaille d'Or FIAP"},{"$f":"Répartition!J18","v":"Thème"},null,"FIAP","Médaille d'Or FIAP","Thème",null,"Médaille d'Or FIAPThème",5]
[6,null,"FIAP","Médaille d'Or FIAP","Nature",null,"FIAP",{"$f":"Répartition!E19","v":"Médaille d'Argent FIAP"},{"$f":"Répartition!F19","v":"Couleur"},null,"FIAP",{"$f":"Répartition!G19","v":"Médaille d'Argent FIAP"},{"$f":"Répartition!H19","v":"Couleur"},null,"FIAP",{"$f":"Répartition!I19","v":"Médaille d'Argent FIAP"},{"$f":"Répartition!J19","v":"Couleur"},null,"PSA","Médaille d'Or PSA","Couleur",null,"Médaille d'Or PSACouleur",6]
[7,null,"FIAP","Médaille d'Or FIAP","Thème",null,"FIAP",{"$f":"Répartition!E20","v":"Médaille d'Argent FIAP"},{"$f":"Répartition!F20","v":"Nature"},null,"FIAP",{"$f":"Répartition!G20","v":"Médaille d'Argent FIAP"},{"$f":"Répartition!H20","v":"Nature"},null,"FIAP",{"$f":"Répartition!I20","v":"Médaille d'Argent FIAP"},{"$f":"Répartition!J20","v":"Nature"},null,"PSA","Médaille d'Or PSA","Nature",null,"Médaille d'Or PSANature",7]
[8,null,"PSA","Médaille d'Or PSA","Couleur",null,"FIAP",{"$f":"Répartition!E21","v":"Médaille d'Argent FIAP"},{"$f":"Répartition!F21","v":"Monochrome"},null,"FIAP",{"$f":"Répartition!G21","v":"Médaille d'Argent FIAP"},{"$f":"Répartition!H21","v":"Monochrome"},null,"FIAP",{"$f":"Répartition!I21","v":"Médaille d'Argent FIAP"},{"$f":"Répartition!J21","v":"Monochrome"},null,"PSA","Médaille d'Or PSA","Monochrome",null,"Médaille d'Or PSAMonochrome",8]
[9,null,"PSA","Médaille d'Or PSA","Monochrome",null,"FIAP",{"$f":"Répartition!E22","v":"Médaille d'Argent FIAP"},{"$f":"Répartition!F22","v":"Thème"},null,"FIAP",{"$f":"Répartition!G22","v":"Médaille d'Argent FIAP"},{"$f":"Répartition!H22","v":"Thème"},null,"FIAP",{"$f":"Répartition!I22","v":"Médaille d'Argent FIAP"},{"$f":"Répartition!J22","v":"Thème"},null,"PSA","Médaille d'Or PSA","Thème",null,"Médaille d'Or PSAThème",9]
[10,null,"PSA","Médaille d'Or PSA","Nature",null,"FIAP",{"$f":"Répartition!E23","v":"Médaille de Bronze FIAP"},{"$f":"Répartition!F23","v":"Couleur"},null,"FIAP",{"$f":"Répartition!G23","v":"Médaille de Bronze FIAP"},{"$f":"Répartition!H23","v":"Couleur"},null,"FIAP",{"$f":"Répartition!I23","v":"Médaille de Bronze FIAP"},{"$f":"Répartition!J23","v":"Couleur"},null,"FPF","Trophée FPF : Meilleur Auteur français","*-*-*-*",null,{"$f":"#REF!&#REF!","v":{"$error":"#REF!"}},10]
[11,null,"PSA","Médaille d'Or PSA","Thème",null,"FIAP",{"$f":"Répartition!E24","v":"Médaille de Bronze FIAP"},{"$f":"Répartition!F24","v":"Nature"},null,"FIAP",{"$f":"Répartition!G24","v":"Médaille de Bronze FIAP"},{"$f":"Répartition!H24","v":"Nature"},null,"FIAP",{"$f":"Répartition!I24","v":"Médaille de Bronze FIAP"},{"$f":"Répartition!J24","v":"Nature"},null,"Spéciale","Médaille de La Gacily","Thème",null,{"$f":"#REF!&#REF!","v":{"$error":"#REF!"}},11]
[12,null,"Spéciale","Médaille prix de la ville de Saint Gervais","Thème",null,"FIAP",{"$f":"Répartition!E25","v":"Médaille de Bronze FIAP"},{"$f":"Répartition!F25","v":"Monochrome"},null,"FIAP",{"$f":"Répartition!G25","v":"Médaille de Bronze FIAP"},{"$f":"Répartition!H25","v":"Monochrome"},null,"FIAP",{"$f":"Répartition!I25","v":"Médaille de Bronze FIAP"},{"$f":"Répartition!J25","v":"Monochrome"},null,"Spéciale","Médaille prix de la ville de Saint Gervais","Thème",null,{"$f":"#REF!&#REF!","v":{"$error":"#REF!"}},12]
[13,null,"Spéciale","Médaille prix du Conseil Général  du Gard","Monochrome",null,"FIAP",{"$f":"Répartition!E26","v":"Médaille de Bronze FIAP"},{"$f":"Répartition!F26","v":"Thème"},null,"FIAP",{"$f":"Répartition!G26","v":"Médaille de Bronze FIAP"},{"$f":"Répartition!H26","v":"Thème"},null,"FIAP",{"$f":"Répartition!I26","v":"Médaille de Bronze FIAP"},{"$f":"Répartition!J26","v":"Thème"},null,"Spéciale","Médaille prix du Conseil Général  du Gard","Monochrome",null,{"$f":"#REF!&#REF!","v":{"$error":"#REF!"}},13]
[14,null,"FIAP","Pins FIAP au meilleur Auteur du Salon","*-*-*-*",null,"FIAP",{"$f":"Répartition!E27","v":"Ruban FIAP coup de Cœur juge N°1"},{"$f":"Répartition!F27","v":"*-*-*-*"},null,"FIAP",{"$f":"Répartition!G27","v":"Ruban FIAP coup de Cœur juge N°1"},{"$f":"Répartition!H27","v":"*-*-*-*"},null,"FIAP",{"$f":"Répartition!I27","v":"Ruban FIAP coup de Cœur juge N°1"},{"$f":"Répartition!J27","v":"*-*-*-*"},null,"Spéciale","Diplôme FDT : Prix ACBM","Couleur",null,{"$f":"#REF!&#REF!","v":{"$error":"#REF!"}},14]
[15,null,"FPF","Trophée FPF : Meilleur Auteur français","*-*-*-*",null,"FIAP",{"$f":"Répartition!E28","v":"Ruban FIAP coup de Cœur juge N°2"},{"$f":"Répartition!F28","v":"*-*-*-*"},null,"FIAP",{"$f":"Répartition!G28","v":"Ruban FIAP coup de Cœur juge N°2"},{"$f":"Répartition!H28","v":"*-*-*-*"},null,"FIAP",{"$f":"Répartition!I28","v":"Ruban FIAP coup de Cœur juge N°2"},{"$f":"Répartition!J28","v":"*-*-*-*"},null,"Spéciale","Diplôme FDT : Prix P.C Bagnols Marcoule","Nature",null,{"$f":"#REF!&#REF!","v":{"$error":"#REF!"}},15]
[16,null,null,null,null,null,"FIAP",{"$f":"Répartition!E29","v":"Ruban FIAP coup de Cœur juge N°3"},{"$f":"Répartition!F29","v":"*-*-*-*"},null,"FIAP",{"$f":"Répartition!G29","v":"Ruban FIAP coup de Cœur juge N°3"},{"$f":"Répartition!H29","v":"*-*-*-*"},null,"FIAP",{"$f":"Répartition!I29","v":"Ruban FIAP coup de Cœur juge N°3"},{"$f":"Répartition!J29","v":"*-*-*-*"},null,null,null,null,null,{"$f":"#REF!&#REF!","v":{"$error":"#REF!"}},16]
[17,null,null,null,null,null,"FIAP",{"$f":"Répartition!E30","v":"Ruban FIAP"},{"$f":"Répartition!F30","v":"Couleur"},null,"FIAP",{"$f":"Répartition!G30","v":"Ruban FIAP"},{"$f":"Répartition!H30","v":"Couleur"},null,"FIAP",{"$f":"Répartition!I30","v":"Ruban FIAP"},{"$f":"Répartition!J30","v":"Couleur"},null,null,null,null,null,{"$f":"#REF!&#REF!","v":{"$error":"#REF!"}},17]
[18,null,null,null,null,null,"FIAP",{"$f":"Répartition!E31","v":"Ruban FIAP"},{"$f":"Répartition!F31","v":"Nature"},null,"FIAP",{"$f":"Répartition!G31","v":"Ruban FIAP"},{"$f":"Répartition!H31","v":"Nature"},null,"FIAP",{"$f":"Répartition!I31","v":"Ruban FIAP"},{"$f":"Répartition!J31","v":"Nature"},null,null,null,null,null,{"$f":"#REF!&#REF!","v":{"$error":"#REF!"}},18]
[19,null,null,null,null,null,"FIAP",{"$f":"Répartition!E32","v":"Ruban FIAP"},{"$f":"Répartition!F32","v":"Monochrome"},null,"FIAP",{"$f":"Répartition!G32","v":"Ruban FIAP"},{"$f":"Répartition!H32","v":"Monochrome"},null,"FIAP",{"$f":"Répartition!I32","v":"Ruban FIAP"},{"$f":"Répartition!J32","v":"Monochrome"},null,null,null,null,null,{"$f":"#REF!&#REF!","v":{"$error":"#REF!"}},19]
[20,null,null,null,null,null,"FIAP",{"$f":"Répartition!E33","v":"Ruban FIAP"},{"$f":"Répartition!F33","v":"Thème"},null,"FIAP",{"$f":"Répartition!G33","v":"Ruban FIAP"},{"$f":"Répartition!H33","v":"Thème"},null,"FIAP",{"$f":"Répartition!I33","v":"Ruban FIAP"},{"$f":"Répartition!J33","v":"Thème"},null,null,null,null,null,{"$f":"#REF!&#REF!","v":{"$error":"#REF!"}},20]
[21,null,null,null,null,null,"FIAP",{"$f":"Répartition!E34","v":"Ruban FIAP"},{"$f":"Répartition!F34","v":"Couleur"},null,"FIAP",{"$f":"Répartition!G34","v":"Ruban FIAP"},{"$f":"Répartition!H34","v":"Couleur"},null,"FIAP",{"$f":"Répartition!I34","v":"Ruban FIAP"},{"$f":"Répartition!J34","v":"Couleur"},null,null,null,null,null,{"$f":"#REF!&#REF!","v":{"$error":"#REF!"}},21]
[22,null,null,null,null,null,"FIAP",{"$f":"Répartition!E35","v":"Ruban FIAP"},{"$f":"Répartition!F35","v":"Nature"},null,"FIAP",{"$f":"Répartition!G35","v":"Ruban FIAP"},{"$f":"Répartition!H35","v":"Nature"},null,"FIAP",{"$f":"Répartition!I35","v":"Ruban FIAP"},{"$f":"Répartition!J35","v":"Nature"},null,null,null,null,null,{"$f":"#REF!&#REF!","v":{"$error":"#REF!"}},22]
[23,null,null,null,null,null,"FIAP",{"$f":"Répartition!E36","v":"Ruban FIAP"},{"$f":"Répartition!F36","v":"Monochrome"},null,"FIAP",{"$f":"Répartition!G36","v":"Ruban FIAP"},{"$f":"Répartition!H36","v":"Monochrome"},null,"FIAP",{"$f":"Répartition!I36","v":"Ruban FIAP"},{"$f":"Répartition!J36","v":"Monochrome"},null,null,null,null,null,{"$f":"#REF!&#REF!","v":{"$error":"#REF!"}},23]
[24,null,null,null,null,null,"FIAP",{"$f":"Répartition!E37","v":"Ruban FIAP"},{"$f":"Répartition!F37","v":"Thème"},null,"FIAP",{"$f":"Répartition!G37","v":"Ruban FIAP"},{"$f":"Répartition!H37","v":"Thème"},null,"FIAP",{"$f":"Répartition!I37","v":"Ruban FIAP"},{"$f":"Répartition!J37","v":"Thème"},null,null,null,null,null,{"$f":"#REF!&#REF!","v":{"$error":"#REF!"}},24]
[25,null,null,null,null,null,"FIAP",{"$f":"Répartition!E38","v":"Ruban FIAP"},{"$f":"Répartition!F38","v":"Couleur"},null,"FIAP",{"$f":"Répartition!G38","v":"Ruban FIAP"},{"$f":"Répartition!H38","v":"Couleur"},null,"FIAP",{"$f":"Répartition!I38","v":"Ruban FIAP"},{"$f":"Répartition!J38","v":"Couleur"},null,null,null,null,null,{"$f":"#REF!&#REF!","v":{"$error":"#REF!"}},25]
[26,null,null,null,null,null,"FIAP",{"$f":"Répartition!E39","v":"Ruban FIAP"},{"$f":"Répartition!F39","v":"Nature"},null,"FIAP",{"$f":"Répartition!G39","v":"Ruban FIAP"},{"$f":"Répartition!H39","v":"Nature"},null,"FIAP",{"$f":"Répartition!I39","v":"Ruban FIAP"},{"$f":"Répartition!J39","v":"Nature"},null,null,null,null,null,{"$f":"T22&U22","v":"Trophée FPF : Meilleur Auteur français*-*-*-*"},26]
[27,null,null,null,null,null,"FIAP",{"$f":"Répartition!E40","v":"Ruban FIAP"},{"$f":"Répartition!F40","v":"Monochrome"},null,"FIAP",{"$f":"Répartition!G40","v":"Ruban FIAP"},{"$f":"Répartition!H40","v":"Monochrome"},null,"FIAP",{"$f":"Répartition!I40","v":"Ruban FIAP"},{"$f":"Répartition!J40","v":"Monochrome"},null,null,null,null,null,{"$f":"#REF!&#REF!","v":{"$error":"#REF!"}},27]
[28,null,null,null,null,null,"FIAP",{"$f":"Répartition!E41","v":"Ruban FIAP"},{"$f":"Répartition!F41","v":"Thème"},null,"FIAP",{"$f":"Répartition!G41","v":"Ruban FIAP"},{"$f":"Répartition!H41","v":"Thème"},null,"FIAP",{"$f":"Répartition!I41","v":"Ruban FIAP"},{"$f":"Répartition!J41","v":"Thème"},null,null,null,null,null,{"$f":"#REF!&#REF!","v":{"$error":"#REF!"}},28]
[29,null,null,null,null,null,"FIAP",{"$f":"Répartition!E42","v":"Ruban FIAP"},{"$f":"Répartition!F42","v":"Couleur"},null,"FIAP",{"$f":"Répartition!G42","v":"Ruban FIAP"},{"$f":"Répartition!H42","v":"Couleur"},null,"FIAP",{"$f":"Répartition!I42","v":"Ruban FIAP"},{"$f":"Répartition!J42","v":"Couleur"},null,null,null,null,null,{"$f":"#REF!&#REF!","v":{"$error":"#REF!"}},29]
[30,null,null,null,null,null,"FIAP",{"$f":"Répartition!E43","v":"Ruban FIAP"},{"$f":"Répartition!F43","v":"Nature"},null,"FIAP",{"$f":"Répartition!G43","v":"Ruban FIAP"},{"$f":"Répartition!H43","v":"Nature"},null,"FIAP",{"$f":"Répartition!I43","v":"Ruban FIAP"},{"$f":"Répartition!J43","v":"Nature"},null,null,null,null,null,{"$f":"#REF!&#REF!","v":{"$error":"#REF!"}},30]
[31,null,null,null,null,null,"FIAP",{"$f":"Répartition!E44","v":"Ruban FIAP"},{"$f":"Répartition!F44","v":"Monochrome"},null,"FIAP",{"$f":"Répartition!G44","v":"Ruban FIAP"},{"$f":"Répartition!H44","v":"Monochrome"},null,"FIAP",{"$f":"Répartition!I44","v":"Ruban FIAP"},{"$f":"Répartition!J44","v":"Monochrome"},null,null,null,null,null,{"$f":"#REF!&#REF!","v":{"$error":"#REF!"}},31]
[32,null,null,null,null,null,"FIAP",{"$f":"Répartition!E45","v":"Ruban FIAP"},{"$f":"Répartition!F45","v":"Thème"},null,"FIAP",{"$f":"Répartition!G45","v":"Ruban FIAP"},{"$f":"Répartition!H45","v":"Thème"},null,"FIAP",{"$f":"Répartition!I45","v":"Ruban FIAP"},{"$f":"Répartition!J45","v":"Thème"},null,null,null,null,null,{"$f":"#REF!&#REF!","v":{"$error":"#REF!"}},32]
[33,null,null,null,null,null,"FIAP",{"$f":"Répartition!E46","v":"Ruban FIAP"},{"$f":"Répartition!F46","v":"Couleur"},null,"FIAP",{"$f":"Répartition!G46","v":"Ruban FIAP"},{"$f":"Répartition!H46","v":"Couleur"},null,"FIAP",{"$f":"Répartition!I46","v":"Ruban FIAP"},{"$f":"Répartition!J46","v":"Couleur"},null,null,null,null,null,{"$f":"#REF!&#REF!","v":{"$error":"#REF!"}},33]
[34,null,null,null,null,null,"FIAP",{"$f":"Répartition!E47","v":"Ruban FIAP"},{"$f":"Répartition!F47","v":"Couleur"},null,"FIAP",{"$f":"Répartition!G47","v":"Ruban FIAP"},{"$f":"Répartition!H47","v":"Couleur"},null,"FIAP",{"$f":"Répartition!I47","v":"Ruban FIAP"},{"$f":"Répartition!J47","v":"Couleur"},null,null,null,null,null,{"$f":"#REF!&#REF!","v":{"$error":"#REF!"}},34]
[35,null,null,null,null,null,"FIAP",{"$f":"Répartition!E48","v":"Ruban FIAP"},{"$f":"Répartition!F48","v":"Nature"},null,"FIAP",{"$f":"Répartition!G48","v":"Ruban FIAP"},{"$f":"Répartition!H48","v":"Nature"},null,"FIAP",{"$f":"Répartition!I48","v":"Ruban FIAP"},{"$f":"Répartition!J48","v":"Nature"},null,null,null,null,null,{"$f":"#REF!&#REF!","v":{"$error":"#REF!"}},35]
[36,null,null,null,null,null,"FIAP",{"$f":"Répartition!E49","v":"Ruban FIAP"},{"$f":"Répartition!F49","v":"Monochrome"},null,"FIAP",{"$f":"Répartition!G49","v":"Ruban FIAP"},{"$f":"Répartition!H49","v":"Monochrome"},null,"FIAP",{"$f":"Répartition!I49","v":"Ruban FIAP"},{"$f":"Répartition!J49","v":"Monochrome"},null,null,null,null,null,{"$f":"#REF!&#REF!","v":{"$error":"#REF!"}},36]
[37,null,null,null,null,null,"FIAP",{"$f":"Répartition!E50","v":"Ruban FIAP"},{"$f":"Répartition!F50","v":"Thème"},null,"FIAP",{"$f":"Répartition!G50","v":"Ruban FIAP"},{"$f":"Répartition!H50","v":"Thème"},null,"FIAP",{"$f":"Répartition!I50","v":"Ruban FIAP"},{"$f":"Répartition!J50","v":"Thème"},null,null,null,null,null,{"$f":"#REF!&#REF!","v":{"$error":"#REF!"}},37]
[38,null,null,null,null,null,"FIAP",{"$f":"Répartition!E51","v":"Ruban FIAP"},{"$f":"Répartition!F51","v":"Couleur"},null,"FIAP",{"$f":"Répartition!G51","v":"Ruban FIAP"},{"$f":"Répartition!H51","v":"Couleur"},null,"FIAP",{"$f":"Répartition!I51","v":"Ruban FIAP"},{"$f":"Répartition!J51","v":"Couleur"},null,null,null,null,null,{"$f":"#REF!&#REF!","v":{"$error":"#REF!"}},38]
[39,null,null,null,null,null,"FIAP",{"$f":"Répartition!E52","v":"Ruban FIAP"},{"$f":"Répartition!F52","v":"Nature"},null,"FIAP",{"$f":"Répartition!G52","v":"Ruban FIAP"},{"$f":"Répartition!H52","v":"Nature"},null,"FIAP",{"$f":"Répartition!I52","v":"Ruban FIAP"},{"$f":"Répartition!J52","v":"Nature"},null,null,null,null,null,{"$f":"#REF!&#REF!","v":{"$error":"#REF!"}},39]
[40,null,null,null,null,null,"FIAP",{"$f":"Répartition!E53","v":"Ruban FIAP"},{"$f":"Répartition!F53","v":"Monochrome"},null,"FIAP",{"$f":"Répartition!G53","v":"Ruban FIAP"},{"$f":"Répartition!H53","v":"Monochrome"},null,"FIAP",{"$f":"Répartition!I53","v":"Ruban FIAP"},{"$f":"Répartition!J53","v":"Monochrome"},null,null,null,null,null,{"$f":"#REF!&#REF!","v":{"$error":"#REF!"}},40]
[41,null,null,null,null,null,"FIAP",{"$f":"Répartition!E54","v":"Ruban FIAP"},{"$f":"Répartition!F54","v":"Thème"},null,"FIAP",{"$f":"Répartition!G54","v":"Ruban FIAP"},{"$f":"Répartition!H54","v":"Thème"},null,"FIAP",{"$f":"Répartition!I54","v":"Ruban FIAP"},{"$f":"Répartition!J54","v":"Thème"},null,null,null,null,null,{"$f":"#REF!&#REF!","v":{"$error":"#REF!"}},41]
[1,null,null,null,null,null,"PSA",{"$f":"Répartition!E55","v":"Médaille d'Or PSA"},{"$f":"Répartition!F55","v":"Couleur"},null,"PSA",{"$f":"Répartition!G55","v":"Médaille d'Or PSA"},{"$f":"Répartition!H55","v":"Couleur"},null,"PSA",{"$f":"Répartition!I55","v":"Médaille d'Or PSA"},{"$f":"Répartition!J55","v":"Couleur"},null,null,null,null,null,{"$f":"#REF!&#REF!","v":{"$error":"#REF!"}},42]
[2,null,null,null,null,null,"PSA",{"$f":"Répartition!E56","v":"Médaille d'Or PSA"},{"$f":"Répartition!F56","v":"Nature"},null,"PSA",{"$f":"Répartition!G56","v":"Médaille d'Or PSA"},{"$f":"Répartition!H56","v":"Nature"},null,"PSA",{"$f":"Répartition!I56","v":"Médaille d'Or PSA"},{"$f":"Répartition!J56","v":"Nature"},null,null,null,null,null,{"$f":"#REF!&#REF!","v":{"$error":"#REF!"}},43]
[3,null,null,null,null,null,"PSA",{"$f":"Répartition!E57","v":"Médaille d'Or PSA"},{"$f":"Répartition!F57","v":"Monochrome"},null,"PSA",{"$f":"Répartition!G57","v":"Médaille d'Or PSA"},{"$f":"Répartition!H57","v":"Monochrome"},null,"PSA",{"$f":"Répartition!I57","v":"Médaille d'Or PSA"},{"$f":"Répartition!J57","v":"Monochrome"},null,null,null,null,null,{"$f":"#REF!&#REF!","v":{"$error":"#REF!"}},44]
[4,null,null,null,null,null,"PSA",{"$f":"Répartition!E58","v":"Médaille d'Or PSA"},{"$f":"Répartition!F58","v":"Thème"},null,"PSA",{"$f":"Répartition!G58","v":"Médaille d'Or PSA"},{"$f":"Répartition!H58","v":"Thème"},null,"PSA",{"$f":"Répartition!I58","v":"Médaille d'Or PSA"},{"$f":"Répartition!J58","v":"Thème"},null,null,null,null,null,{"$f":"#REF!&#REF!","v":{"$error":"#REF!"}},45]
[5,null,null,null,null,null,"PSA",{"$f":"Répartition!E59","v":"Médaille d'Argent PSA"},{"$f":"Répartition!F59","v":"Couleur"},null,"PSA",{"$f":"Répartition!G59","v":"Médaille d'Argent PSA"},{"$f":"Répartition!H59","v":"Couleur"},null,"PSA",{"$f":"Répartition!I59","v":"Médaille d'Argent PSA"},{"$f":"Répartition!J59","v":"Couleur"},null,null,null,null,null,{"$f":"#REF!&#REF!","v":{"$error":"#REF!"}},46]
[6,null,null,null,null,null,"PSA",{"$f":"Répartition!E60","v":"Médaille d'Argent PSA"},{"$f":"Répartition!F60","v":"Nature"},null,"PSA",{"$f":"Répartition!G60","v":"Médaille d'Argent PSA"},{"$f":"Répartition!H60","v":"Nature"},null,"PSA",{"$f":"Répartition!I60","v":"Médaille d'Argent PSA"},{"$f":"Répartition!J60","v":"Nature"},null,null,null,null,null,{"$f":"#REF!&#REF!","v":{"$error":"#REF!"}},47]
[7,null,null,null,null,null,"PSA",{"$f":"Répartition!E61","v":"Médaille d'Argent PSA"},{"$f":"Répartition!F61","v":"Monochrome"},null,"PSA",{"$f":"Répartition!G61","v":"Médaille d'Argent PSA"},{"$f":"Répartition!H61","v":"Monochrome"},null,"PSA",{"$f":"Répartition!I61","v":"Médaille d'Argent PSA"},{"$f":"Répartition!J61","v":"Monochrome"},null,null,null,null,null,{"$f":"#REF!&#REF!","v":{"$error":"#REF!"}},48]
[8,null,null,null,null,null,"PSA",{"$f":"Répartition!E62","v":"Médaille d'Argent PSA"},{"$f":"Répartition!F62","v":"Thème"},null,"PSA",{"$f":"Répartition!G62","v":"Médaille d'Argent PSA"},{"$f":"Répartition!H62","v":"Thème"},null,"PSA",{"$f":"Répartition!I62","v":"Médaille d'Argent PSA"},{"$f":"Répartition!J62","v":"Thème"},null,null,null,null,null,{"$f":"#REF!&#REF!","v":{"$error":"#REF!"}},49]
[9,null,null,null,null,null,"PSA",{"$f":"Répartition!E63","v":"Médaille de Bronze PSA"},{"$f":"Répartition!F63","v":"Couleur"},null,"PSA",{"$f":"Répartition!G63","v":"Médaille de Bronze PSA"},{"$f":"Répartition!H63","v":"Couleur"},null,"PSA",{"$f":"Répartition!I63","v":"Médaille de Bronze PSA"},{"$f":"Répartition!J63","v":"Couleur"},null,null,null,null,null,{"$f":"#REF!&#REF!","v":{"$error":"#REF!"}},50]
[10,null,null,null,null,null,"PSA",{"$f":"Répartition!E64","v":"Médaille de Bronze PSA"},{"$f":"Répartition!F64","v":"Nature"},null,"PSA",{"$f":"Répartition!G64","v":"Médaille de Bronze PSA"},{"$f":"Répartition!H64","v":"Nature"},null,"PSA",{"$f":"Répartition!I64","v":"Médaille de Bronze PSA"},{"$f":"Répartition!J64","v":"Nature"},null,null,null,null,null,{"$f":"#REF!&#REF!","v":{"$error":"#REF!"}},51]
[11,null,null,null,null,null,"PSA",{"$f":"Répartition!E65","v":"Médaille de Bronze PSA"},{"$f":"Répartition!F65","v":"Monochrome"},null,"PSA",{"$f":"Répartition!G65","v":"Médaille de Bronze PSA"},{"$f":"Répartition!H65","v":"Monochrome"},null,"PSA",{"$f":"Répartition!I65","v":"Médaille de Bronze PSA"},{"$f":"Répartition!J65","v":"Monochrome"},null,null,null,null,null,{"$f":"#REF!&#REF!","v":{"$error":"#REF!"}},52]
[12,null,null,null,null,null,"PSA",{"$f":"Répartition!E66","v":"Médaille de Bronze PSA"},{"$f":"Répartition!F66","v":"Thème"},null,"PSA",{"$f":"Répartition!G66","v":"Médaille de Bronze PSA"},{"$f":"Répartition!H66","v":"Thème"},null,"PSA",{"$f":"Répartition!I66","v":"Médaille de Bronze PSA"},{"$f":"Répartition!J66","v":"Thème"},null,null,null,null,null,{"$f":"#REF!&#REF!","v":{"$error":"#REF!"}},53]
[13,null,null,null,null,null,"PSA",{"$f":"Répartition!E67","v":"Ruban PSA"},{"$f":"Répartition!F67","v":"Couleur"},null,"PSA",{"$f":"Répartition!G67","v":"Ruban PSA"},{"$f":"Répartition!H67","v":"Couleur"},null,"PSA",{"$f":"Répartition!I67","v":"Ruban PSA"},{"$f":"Répartition!J67","v":"Couleur"},null,null,null,null,null,{"$f":"#REF!&#REF!","v":{"$error":"#REF!"}},54]
[14,null,null,null,null,null,"PSA",{"$f":"Répartition!E68","v":"Ruban PSA"},{"$f":"Répartition!F68","v":"Nature"},null,"PSA",{"$f":"Répartition!G68","v":"Ruban PSA"},{"$f":"Répartition!H68","v":"Nature"},null,"PSA",{"$f":"Répartition!I68","v":"Ruban PSA"},{"$f":"Répartition!J68","v":"Nature"},null,null,null,null,null,{"$f":"#REF!&#REF!","v":{"$error":"#REF!"}},55]
[15,null,null,null,null,null,"PSA",{"$f":"Répartition!E69","v":"Ruban PSA"},{"$f":"Répartition!F69","v":"Monochrome"},null,"PSA",{"$f":"Répartition!G69","v":"Ruban PSA"},{"$f":"Répartition!H69","v":"Monochrome"},null,"PSA",{"$f":"Répartition!I69","v":"Ruban PSA"},{"$f":"Répartition!J69","v":"Monochrome"},null,null,null,null,null,{"$f":"#REF!&#REF!","v":{"$error":"#REF!"}},56]
[16,null,null,null,null,null,"PSA",{"$f":"Répartition!E70","v":"Ruban PSA"},{"$f":"Répartition!F70","v":"Thème"},null,"PSA",{"$f":"Répartition!G70","v":"Ruban PSA"},{"$f":"Répartition!H70","v":"Thème"},null,"PSA",{"$f":"Répartition!I70","v":"Ruban PSA"},{"$f":"Répartition!J70","v":"Thème"},null,null,null,null,null,{"$f":"#REF!&#REF!","v":{"$error":"#REF!"}},57]
[17,null,null,null,null,null,"PSA",{"$f":"Répartition!E71","v":"Ruban PSA"},{"$f":"Répartition!F71","v":"Couleur"},null,"PSA",{"$f":"Répartition!G71","v":"Ruban PSA"},{"$f":"Répartition!H71","v":"Couleur"},null,"PSA",{"$f":"Répartition!I71","v":"Ruban PSA"},{"$f":"Répartition!J71","v":"Couleur"},null,null,null,null,null,{"$f":"#REF!&#REF!","v":{"$error":"#REF!"}},58]
[18,null,null,null,null,null,"PSA",{"$f":"Répartition!E72","v":"Ruban PSA"},{"$f":"Répartition!F72","v":"Nature"},null,"PSA",{"$f":"Répartition!G72","v":"Ruban PSA"},{"$f":"Répartition!H72","v":"Nature"},null,"PSA",{"$f":"Répartition!I72","v":"Ruban PSA"},{"$f":"Répartition!J72","v":"Nature"},null,null,null,null,null,{"$f":"#REF!&#REF!","v":{"$error":"#REF!"}},59]
[19,null,null,null,null,null,"PSA",{"$f":"Répartition!E73","v":"Ruban PSA"},{"$f":"Répartition!F73","v":"Monochrome"},null,"PSA",{"$f":"Répartition!G73","v":"Ruban PSA"},{"$f":"Répartition!H73","v":"Monochrome"},null,"PSA",{"$f":"Répartition!I73","v":"Ruban PSA"},{"$f":"Répartition!J73","v":"Monochrome"},null,null,null,null,null,{"$f":"#REF!&#REF!","v":{"$error":"#REF!"}},60]
[20,null,null,null,null,null,"PSA",{"$f":"Répartition!E74","v":"Ruban PSA"},{"$f":"Répartition!F74","v":"Thème"},null,"PSA",{"$f":"Répartition!G74","v":"Ruban PSA"},{"$f":"Répartition!H74","v":"Thème"},null,"PSA",{"$f":"Répartition!I74","v":"Ruban PSA"},{"$f":"Répartition!J74","v":"Thème"},null,null,null,null,null,{"$f":"#REF!&#REF!","v":{"$error":"#REF!"}},61]
[1,null,null,null,null,null,"GPU",{"$f":"Répartition!E75","v":"Médaille d'Or GPU"},{"$f":"Répartition!F75","v":"Nature"},null,"GPU",{"$f":"Répartition!G75","v":"Médaille d'Or GPU"},{"$f":"Répartition!H75","v":"Monochrome"},null,"GPU",{"$f":"Répartition!I75","v":"Médaille d'Or GPU"},{"$f":"Répartition!J75","v":"Thème"},null,null,null,null,null,{"$f":"#REF!&#REF!","v":{"$error":"#REF!"}},62]
[2,null,null,null,null,null,"GPU",{"$f":"Répartition!E76","v":"Médaille d'Argent GPU"},{"$f":"Répartition!F76","v":"Monochrome"},null,"GPU",{"$f":"Répartition!G76","v":"Médaille d'Argent GPU"},{"$f":"Répartition!H76","v":"Thème"},null,"GPU",{"$f":"Répartition!I76","v":"Médaille d'Argent GPU"},{"$f":"Répartition!J76","v":"Couleur"},null,null,null,null,null,{"$f":"#REF!&#REF!","v":{"$error":"#REF!"}},63]
[3,null,null,null,null,null,"GPU",{"$f":"Répartition!E77","v":"Médaille de Bronze GPU"},{"$f":"Répartition!F77","v":"Thème"},null,"GPU",{"$f":"Répartition!G77","v":"Médaille de Bronze GPU"},{"$f":"Répartition!H77","v":"Couleur"},null,"GPU",{"$f":"Répartition!I77","v":"Médaille de Bronze GPU"},{"$f":"Répartition!J77","v":"Nature"},null,null,null,null,null,{"$f":"#REF!&#REF!","v":{"$error":"#REF!"}},64]
[4,null,null,null,null,null,"GPU",{"$f":"Répartition!E78","v":"Ruban GPU"},{"$f":"Répartition!F78","v":"Couleur"},null,"GPU",{"$f":"Répartition!G78","v":"Ruban GPU"},{"$f":"Répartition!H78","v":"Couleur"},null,"GPU",{"$f":"Répartition!I78","v":"Ruban GPU"},{"$f":"Répartition!J78","v":"Couleur"},null,null,null,null,null,{"$f":"#REF!&#REF!","v":{"$error":"#REF!"}},65]
[5,null,null,null,null,null,"GPU",{"$f":"Répartition!E79","v":"Ruban GPU"},{"$f":"Répartition!F79","v":"Nature"},null,"GPU",{"$f":"Répartition!G79","v":"Ruban GPU"},{"$f":"Répartition!H79","v":"Nature"},null,"GPU",{"$f":"Répartition!I79","v":"Ruban GPU"},{"$f":"Répartition!J79","v":"Nature"},null,null,null,null,null,{"$f":"#REF!&#REF!","v":{"$error":"#REF!"}},66]
[6,null,null,null,null,null,"GPU",{"$f":"Répartition!E80","v":"Ruban GPU"},{"$f":"Répartition!F80","v":"Monochrome"},null,"GPU",{"$f":"Répartition!G80","v":"Ruban GPU"},{"$f":"Répartition!H80","v":"Monochrome"},null,"GPU",{"$f":"Répartition!I80","v":"Ruban GPU"},{"$f":"Répartition!J80","v":"Monochrome"},null,null,null,null,null,{"$f":"#REF!&#REF!","v":{"$error":"#REF!"}},67]
[7,null,null,null,null,null,"GPU",{"$f":"Répartition!E81","v":"Ruban GPU"},{"$f":"Répartition!F81","v":"Thème"},null,"GPU",{"$f":"Répartition!G81","v":"Ruban GPU"},{"$f":"Répartition!H81","v":"Thème"},null,"GPU",{"$f":"Répartition!I81","v":"Ruban GPU"},{"$f":"Répartition!J81","v":"Thème"},null,null,null,null,null,{"$f":"#REF!&#REF!","v":{"$error":"#REF!"}},68]
[8,null,null,null,null,null,"GPU",{"$f":"Répartition!E82","v":"Ruban GPU"},{"$f":"Répartition!F82","v":"Couleur"},null,"GPU",{"$f":"Répartition!G82","v":"Ruban GPU"},{"$f":"Répartition!H82","v":"Couleur"},null,"GPU",{"$f":"Répartition!I82","v":"Ruban GPU"},{"$f":"Répartition!J82","v":"Couleur"},null,null,null,null,null,{"$f":"#REF!&#REF!","v":{"$error":"#REF!"}},69]
[9,null,null,null,null,null,"GPU",{"$f":"Répartition!E83","v":"Ruban GPU"},{"$f":"Répartition!F83","v":"Nature"},null,"GPU",{"$f":"Répartition!G83","v":"Ruban GPU"},{"$f":"Répartition!H83","v":"Nature"},null,"GPU",{"$f":"Répartition!I83","v":"Ruban GPU"},{"$f":"Répartition!J83","v":"Nature"},null,null,null,null,null,{"$f":"#REF!&#REF!","v":{"$error":"#REF!"}},70]
[1,null,null,null,null,null,"FPF",{"$f":"Répartition!E84","v":"Trophée FPF : Meilleur Auteur français"},{"$f":"Répartition!F84","v":"*-*-*-*"},null,"FPF",{"$f":"Répartition!G84","v":"Trophée FPF : Meilleur Auteur français"},{"$f":"Répartition!H84","v":"*-*-*-*"},null,"FPF",{"$f":"Répartition!I84","v":"Trophée FPF : Meilleur Auteur français"},{"$f":"Répartition!J84","v":"*-*-*-*"},null,null,null,null,null,{"$f":"#REF!&#REF!","v":{"$error":"#REF!"}},71]
[2,null,null,null,null,null,"FPF",{"$f":"Répartition!E85","v":"Médaille d'Or FPF"},{"$f":"Répartition!F85","v":"Nature"},null,"FPF",{"$f":"Répartition!G85","v":"Médaille d'Or FPF"},{"$f":"Répartition!H85","v":"Monochrome"},null,"FPF",{"$f":"Répartition!I85","v":"Médaille d'Or FPF"},{"$f":"Répartition!J85","v":"Thème"},null,null,null,null,null,{"$f":"#REF!&#REF!","v":{"$error":"#REF!"}},72]
[3,null,null,null,null,null,"FPF",{"$f":"Répartition!E86","v":"Médaille d'Or FPF"},{"$f":"Répartition!F86","v":"Monochrome"},null,"FPF",{"$f":"Répartition!G86","v":"Médaille d'Or FPF"},{"$f":"Répartition!H86","v":"Thème"},null,"FPF",{"$f":"Répartition!I86","v":"Médaille d'Or FPF"},{"$f":"Répartition!J86","v":"Couleur"},null,null,null,null,null,{"$f":"#REF!&#REF!","v":{"$error":"#REF!"}},73]
[4,null,null,null,null,null,"FPF",{"$f":"Répartition!E87","v":"Médaille d'Argent FPF"},{"$f":"Répartition!F87","v":"Nature"},null,"FPF",{"$f":"Répartition!G87","v":"Médaille d'Argent FPF"},{"$f":"Répartition!H87","v":"Monochrome"},null,"FPF",{"$f":"Répartition!I87","v":"Médaille d'Argent FPF"},{"$f":"Répartition!J87","v":"Thème"},null,null,null,null,null,{"$f":"#REF!&#REF!","v":{"$error":"#REF!"}},74]
[5,null,null,null,null,null,"FPF",{"$f":"Répartition!E88","v":"Médaille d'Argent FPF"},{"$f":"Répartition!F88","v":"Monochrome"},null,"FPF",{"$f":"Répartition!G88","v":"Médaille d'Argent FPF"},{"$f":"Répartition!H88","v":"Thème"},null,"FPF",{"$f":"Répartition!I88","v":"Médaille d'Argent FPF"},{"$f":"Répartition!J88","v":"Couleur"},null,null,null,null,null,{"$f":"#REF!&#REF!","v":{"$error":"#REF!"}},75]
[6,null,null,null,null,null,"FPF",{"$f":"Répartition!E89","v":"Médaille de Bronze FPF"},{"$f":"Répartition!F89","v":"Nature"},null,"FPF",{"$f":"Répartition!G89","v":"Médaille de Bronze FPF"},{"$f":"Répartition!H89","v":"Monochrome"},null,"FPF",{"$f":"Répartition!I89","v":"Médaille de Bronze FPF"},{"$f":"Répartition!J89","v":"Thème"},null,null,null,null,null,{"$f":"#REF!&#REF!","v":{"$error":"#REF!"}},76]
[7,null,null,null,null,null,"FPF",{"$f":"Répartition!E90","v":"Médaille de Bronze FPF"},{"$f":"Répartition!F90","v":"Monochrome"},null,"FPF",{"$f":"Répartition!G90","v":"Médaille de Bronze FPF"},{"$f":"Répartition!H90","v":"Thème"},null,"FPF",{"$f":"Répartition!I90","v":"Médaille de Bronze FPF"},{"$f":"Répartition!J90","v":"Couleur"},null,null,null,null,null,{"$f":"#REF!&#REF!","v":{"$error":"#REF!"}},77]
[8,null,null,null,null,null,"FPF",{"$f":"Répartition!E91","v":"Diplôme FPF"},{"$f":"Répartition!F91","v":"Couleur"},null,"FPF",{"$f":"Répartition!G91","v":"Diplôme FPF"},{"$f":"Répartition!H91","v":"Couleur"},null,"FPF",{"$f":"Répartition!I91","v":"Diplôme FPF"},{"$f":"Répartition!J91","v":"Couleur"},null,null,null,null,null,{"$f":"#REF!&#REF!","v":{"$error":"#REF!"}},78]
[9,null,null,null,null,null,"FPF",{"$f":"Répartition!E92","v":"Diplôme FPF"},{"$f":"Répartition!F92","v":"Nature"},null,"FPF",{"$f":"Répartition!G92","v":"Diplôme FPF"},{"$f":"Répartition!H92","v":"Nature"},null,"FPF",{"$f":"Répartition!I92","v":"Diplôme FPF"},{"$f":"Répartition!J92","v":"Nature"},null,null,null,null,null,{"$f":"#REF!&#REF!","v":{"$error":"#REF!"}},79]
[10,null,null,null,null,null,"FPF",{"$f":"Répartition!E93","v":"Diplôme FPF"},{"$f":"Répartition!F93","v":"Monochrome"},null,"FPF",{"$f":"Répartition!G93","v":"Diplôme FPF"},{"$f":"Répartition!H93","v":"Monochrome"},null,"FPF",{"$f":"Répartition!I93","v":"Diplôme FPF"},{"$f":"Répartition!J93","v":"Monochrome"},null,null,null,null,null,{"$f":"#REF!&#REF!","v":{"$error":"#REF!"}},80]
[11,null,null,null,null,null,"FPF",{"$f":"Répartition!E94","v":"Diplôme FPF"},{"$f":"Répartition!F94","v":"Thème"},null,"FPF",{"$f":"Répartition!G94","v":"Diplôme FPF"},{"$f":"Répartition!H94","v":"Thème"},null,"FPF",{"$f":"Répartition!I94","v":"Diplôme FPF"},{"$f":"Répartition!J94","v":"Thème"},null,null,null,null,null,{"$f":"#REF!&#REF!","v":{"$error":"#REF!"}},81]
[12,null,null,null,null,null,"FPF",{"$f":"Répartition!E95","v":"Diplôme FPF"},{"$f":"Répartition!F95","v":"Couleur"},null,"FPF",{"$f":"Répartition!G95","v":"Diplôme FPF"},{"$f":"Répartition!H95","v":"Couleur"},null,"FPF",{"$f":"Répartition!I95","v":"Diplôme FPF"},{"$f":"Répartition!J95","v":"Couleur"},null,null,null,null,null,{"$f":"#REF!&#REF!","v":{"$error":"#REF!"}},82]
[13,null,null,null,null,null,"FPF",{"$f":"Répartition!E96","v":"Diplôme FPF"},{"$f":"Répartition!F96","v":"Nature"},null,"FPF",{"$f":"Répartition!G96","v":"Diplôme FPF"},{"$f":"Répartition!H96","v":"Nature"},null,"FPF",{"$f":"Répartition!I96","v":"Diplôme FPF"},{"$f":"Répartition!J96","v":"Nature"},null,null,null,null,null,{"$f":"#REF!&#REF!","v":{"$error":"#REF!"}},83]
[14,null,null,null,null,null,"FPF",{"$f":"Répartition!E97","v":"Diplôme FPF"},{"$f":"Répartition!F97","v":"Monochrome"},null,"FPF",{"$f":"Répartition!G97","v":"Diplôme FPF"},{"$f":"Répartition!H97","v":"Monochrome"},null,"FPF",{"$f":"Répartition!I97","v":"Diplôme FPF"},{"$f":"Répartition!J97","v":"Monochrome"},null,null,null,null,null,{"$f":"#REF!&#REF!","v":{"$error":"#REF!"}},84]
[15,null,null,null,null,null,"FPF",{"$f":"Répartition!E98","v":"Diplôme FPF"},{"$f":"Répartition!F98","v":"Thème"},null,"FPF",{"$f":"Répartition!G98","v":"Diplôme FPF"},{"$f":"Répartition!H98","v":"Thème"},null,"FPF",{"$f":"Répartition!I98","v":"Diplôme FPF"},{"$f":"Répartition!J98","v":"Thème"},null,null,null,null,null,{"$f":"#REF!&#REF!","v":{"$error":"#REF!"}},85]
[16,null,null,null,null,null,"FPF",{"$f":"Répartition!E99","v":"Diplôme FPF"},{"$f":"Répartition!F99","v":"Couleur"},null,"FPF",{"$f":"Répartition!G99","v":"Diplôme FPF"},{"$f":"Répartition!H99","v":"Couleur"},null,"FPF",{"$f":"Répartition!I99","v":"Diplôme FPF"},{"$f":"Répartition!J99","v":"Couleur"},null,null,null,null,null,{"$f":"#REF!&#REF!","v":{"$error":"#REF!"}},86]
[17,null,null,null,null,null,"FPF",{"$f":"Répartition!E100","v":"Diplôme FPF"},{"$f":"Répartition!F100","v":"Nature"},null,"FPF",{"$f":"Répartition!G100","v":"Diplôme FPF"},{"$f":"Répartition!H100","v":"Nature"},null,"FPF",{"$f":"Répartition!I100","v":"Diplôme FPF"},{"$f":"Répartition!J100","v":"Nature"},null,null,null,null,null,{"$f":"#REF!&#REF!","v":{"$error":"#REF!"}},87]
[18,null,null,null,null,null,"FPF",{"$f":"Répartition!E101","v":"Diplôme FPF"},{"$f":"Répartition!F101","v":"Monochrome"},null,"FPF",{"$f":"Répartition!G101","v":"Diplôme FPF"},{"$f":"Répartition!H101","v":"Monochrome"},null,"FPF",{"$f":"Répartition!I101","v":"Diplôme FPF"},{"$f":"Répartition!J101","v":"Monochrome"},null,null,null,null,null,{"$f":"#REF!&#REF!","v":{"$error":"#REF!"}},88]
[19,null,null,null,null,null,"FPF",{"$f":"Répartition!E102","v":"Diplôme FPF"},{"$f":"Répartition!F102","v":"Thème"},null,"FPF",{"$f":"Répartition!G102","v":"Diplôme FPF"},{"$f":"Répartition!H102","v":"Thème"},null,"FPF",{"$f":"Répartition!I102","v":"Diplôme FPF"},{"$f":"Répartition!J102","v":"Thème"},null,null,null,null,null,{"$f":"#REF!&#REF!","v":{"$error":"#REF!"}},89]
[20,null,null,null,null,null,"FPF",{"$f":"Répartition!E103","v":"Diplôme FPF"},{"$f":"Répartition!F103","v":"Nature"},null,"FPF",{"$f":"Répartition!G103","v":"Diplôme FPF"},{"$f":"Répartition!H103","v":"Monochrome"},null,"FPF",{"$f":"Répartition!I103","v":"Diplôme FPF"},{"$f":"Répartition!J103","v":"Thème"},null,null,null,null,null,{"$f":"#REF!&#REF!","v":{"$error":"#REF!"}},90]
[21,null,null,null,null,null,"FPF",{"$f":"Répartition!E104","v":"Diplôme FPF"},{"$f":"Répartition!F104","v":"Monochrome"},null,"FPF",{"$f":"Répartition!G104","v":"Diplôme FPF"},{"$f":"Répartition!H104","v":"Thème"},null,"FPF",{"$f":"Répartition!I104","v":"Diplôme FPF"},{"$f":"Répartition!J104","v":"Couleur"},null,null,null,null,null,{"$f":"#REF!&#REF!","v":{"$error":"#REF!"}},91]
[1,null,null,null,null,null,"ISF",{"$f":"Répartition!E105","v":"Médaille d'Or ISF"},{"$f":"Répartition!F105","v":"Nature"},null,"ISF",{"$f":"Répartition!G105","v":"Médaille d'Or ISF"},{"$f":"Répartition!H105","v":"Monochrome"},null,"ISF",{"$f":"Répartition!I105","v":"Médaille d'Or ISF"},{"$f":"Répartition!J105","v":"Thème"},null,null,null,null,null,{"$f":"#REF!&#REF!","v":{"$error":"#REF!"}},92]
[2,null,null,null,null,null,"ISF",{"$f":"Répartition!E106","v":"Médaille d'Argent ISF"},{"$f":"Répartition!F106","v":"Monochrome"},null,"ISF",{"$f":"Répartition!G106","v":"Médaille d'Argent ISF"},{"$f":"Répartition!H106","v":"Thème"},null,"ISF",{"$f":"Répartition!I106","v":"Médaille d'Argent ISF"},{"$f":"Répartition!J106","v":"Couleur"},null,null,null,null,null,{"$f":"#REF!&#REF!","v":{"$error":"#REF!"}},93]
[3,null,null,null,null,null,"ISF",{"$f":"Répartition!E107","v":"Médaille de Bronze ISF"},{"$f":"Répartition!F107","v":"Thème"},null,"ISF",{"$f":"Répartition!G107","v":"Médaille de Bronze ISF"},{"$f":"Répartition!H107","v":"Couleur"},null,"ISF",{"$f":"Répartition!I107","v":"Médaille de Bronze ISF"},{"$f":"Répartition!J107","v":"Nature"},null,null,null,null,null,{"$f":"#REF!&#REF!","v":{"$error":"#REF!"}},94]
[4,null,null,null,null,null,"ISF",{"$f":"Répartition!E108","v":"Diplôme ISF"},{"$f":"Répartition!F108","v":"Couleur"},null,"ISF",{"$f":"Répartition!G108","v":"Diplôme ISF"},{"$f":"Répartition!H108","v":"Couleur"},null,"ISF",{"$f":"Répartition!I108","v":"Diplôme ISF"},{"$f":"Répartition!J108","v":"Couleur"},null,null,null,null,null,{"$f":"#REF!&#REF!","v":{"$error":"#REF!"}},95]
[5,null,null,null,null,null,"ISF",{"$f":"Répartition!E109","v":"Diplôme ISF"},{"$f":"Répartition!F109","v":"Nature"},null,"ISF",{"$f":"Répartition!G109","v":"Diplôme ISF"},{"$f":"Répartition!H109","v":"Nature"},null,"ISF",{"$f":"Répartition!I109","v":"Diplôme ISF"},{"$f":"Répartition!J109","v":"Nature"},null,null,null,null,null,{"$f":"#REF!&#REF!","v":{"$error":"#REF!"}},96]
[6,null,null,null,null,null,"ISF",{"$f":"Répartition!E110","v":"Diplôme ISF"},{"$f":"Répartition!F110","v":"Monochrome"},null,"ISF",{"$f":"Répartition!G110","v":"Diplôme ISF"},{"$f":"Répartition!H110","v":"Monochrome"},null,"ISF",{"$f":"Répartition!I110","v":"Diplôme ISF"},{"$f":"Répartition!J110","v":"Monochrome"},null,null,null,null,null,{"$f":"#REF!&#REF!","v":{"$error":"#REF!"}},97]
[7,null,null,null,null,null,"ISF",{"$f":"Répartition!E111","v":"Diplôme ISF"},{"$f":"Répartition!F111","v":"Thème"},null,"ISF",{"$f":"Répartition!G111","v":"Diplôme ISF"},{"$f":"Répartition!H111","v":"Thème"},null,"ISF",{"$f":"Répartition!I111","v":"Diplôme ISF"},{"$f":"Répartition!J111","v":"Thème"},null,null,null,null,null,{"$f":"#REF!&#REF!","v":{"$error":"#REF!"}},98]
[8,null,null,null,null,null,"ISF",{"$f":"Répartition!E112","v":"Diplôme ISF"},{"$f":"Répartition!F112","v":"Couleur"},null,"ISF",{"$f":"Répartition!G112","v":"Diplôme ISF"},{"$f":"Répartition!H112","v":"Couleur"},null,"ISF",{"$f":"Répartition!I112","v":"Diplôme ISF"},{"$f":"Répartition!J112","v":"Couleur"},null,null,null,null,null,{"$f":"#REF!&#REF!","v":{"$error":"#REF!"}},99]
[9,null,null,null,null,null,"ISF",{"$f":"Répartition!E113","v":"Diplôme ISF"},{"$f":"Répartition!F113","v":"Nature"},null,"ISF",{"$f":"Répartition!G113","v":"Diplôme ISF"},{"$f":"Répartition!H113","v":"Nature"},null,"ISF",{"$f":"Répartition!I113","v":"Diplôme ISF"},{"$f":"Répartition!J113","v":"Nature"},null,null,null,null,null,{"$f":"#REF!&#REF!","v":{"$error":"#REF!"}},100]
[10,null,null,null,null,null,"ISF",{"$f":"Répartition!E114","v":"Diplôme ISF"},{"$f":"Répartition!F114","v":"Monochrome"},null,"ISF",{"$f":"Répartition!G114","v":"Diplôme ISF"},{"$f":"Répartition!H114","v":"Monochrome"},null,"ISF",{"$f":"Répartition!I114","v":"Diplôme ISF"},{"$f":"Répartition!J114","v":"Monochrome"},null,null,null,null,null,{"$f":"#REF!&#REF!","v":{"$error":"#REF!"}},101]
[11,null,null,null,null,null,"ISF",{"$f":"Répartition!E115","v":"Diplôme ISF"},{"$f":"Répartition!F115","v":"Thème"},null,"ISF",{"$f":"Répartition!G115","v":"Diplôme ISF"},{"$f":"Répartition!H115","v":"Thème"},null,"ISF",{"$f":"Répartition!I115","v":"Diplôme ISF"},{"$f":"Répartition!J115","v":"Thème"},null,null,null,null,null,{"$f":"#REF!&#REF!","v":{"$error":"#REF!"}},102]
[12,null,null,null,null,null,"ISF",{"$f":"Répartition!E116","v":"Diplôme ISF"},{"$f":"Répartition!F116","v":"Couleur"},null,"ISF",{"$f":"Répartition!G116","v":"Diplôme ISF"},{"$f":"Répartition!H116","v":"Couleur"},null,"ISF",{"$f":"Répartition!I116","v":"Diplôme ISF"},{"$f":"Répartition!J116","v":"Couleur"},null,null,null,null,null,{"$f":"#REF!&#REF!","v":{"$error":"#REF!"}},103]
[13,null,null,null,null,null,"ISF",{"$f":"Répartition!E117","v":"Diplôme ISF"},{"$f":"Répartition!F117","v":"Nature"},null,"ISF",{"$f":"Répartition!G117","v":"Diplôme ISF"},{"$f":"Répartition!H117","v":"Nature"},null,"ISF",{"$f":"Répartition!I117","v":"Diplôme ISF"},{"$f":"Répartition!J117","v":"Nature"},null,null,null,null,null,{"$f":"#REF!&#REF!","v":{"$error":"#REF!"}},104]
[14,null,null,null,null,null,"ISF",{"$f":"Répartition!E118","v":"Diplôme ISF"},{"$f":"Répartition!F118","v":"Monochrome"},null,"ISF",{"$f":"Répartition!G118","v":"Diplôme ISF"},{"$f":"Répartition!H118","v":"Monochrome"},null,"ISF",{"$f":"Répartition!I118","v":"Diplôme ISF"},{"$f":"Répartition!J118","v":"Monochrome"},null,null,null,null,null,{"$f":"#REF!&#REF!","v":{"$error":"#REF!"}},105]
[15,null,null,null,null,null,"ISF",{"$f":"Répartition!E119","v":"Diplôme ISF"},{"$f":"Répartition!F119","v":"Thème"},null,"ISF",{"$f":"Répartition!G119","v":"Diplôme ISF"},{"$f":"Répartition!H119","v":"Thème"},null,"ISF",{"$f":"Répartition!I119","v":"Diplôme ISF"},{"$f":"Répartition!J119","v":"Thème"},null,null,null,null,null,{"$f":"#REF!&#REF!","v":{"$error":"#REF!"}},106]
[1,null,null,null,null,null,"FDT",{"$f":"Répartition!E120","v":"Médaille d'Or FDT"},{"$f":"Répartition!F120","v":"Couleur"},null,"FDT",{"$f":"Répartition!G120","v":"Médaille d'Or FDT"},{"$f":"Répartition!H120","v":"Couleur"},null,"FDT",{"$f":"Répartition!I120","v":"Médaille d'Or FDT"},{"$f":"Répartition!J120","v":"Couleur"},null,null,null,null,null,{"$f":"#REF!&#REF!","v":{"$error":"#REF!"}},107]
[2,null,null,null,null,null,"FDT",{"$f":"Répartition!E121","v":"Médaille d'Or FDT"},{"$f":"Répartition!F121","v":"Nature"},null,"FDT",{"$f":"Répartition!G121","v":"Médaille d'Or FDT"},{"$f":"Répartition!H121","v":"Nature"},null,"FDT",{"$f":"Répartition!I121","v":"Médaille d'Or FDT"},{"$f":"Répartition!J121","v":"Nature"},null,null,null,null,null,{"$f":"#REF!&#REF!","v":{"$error":"#REF!"}},108]
[3,null,null,null,null,null,"FDT",{"$f":"Répartition!E122","v":"Médaille d'Or FDT"},{"$f":"Répartition!F122","v":"Monochrome"},null,"FDT",{"$f":"Répartition!G122","v":"Médaille d'Or FDT"},{"$f":"Répartition!H122","v":"Monochrome"},null,"FDT",{"$f":"Répartition!I122","v":"Médaille d'Or FDT"},{"$f":"Répartition!J122","v":"Monochrome"},null,null,null,null,null,{"$f":"#REF!&#REF!","v":{"$error":"#REF!"}},109]
[4,null,null,null,null,null,"FDT",{"$f":"Répartition!E123","v":"Médaille d'Or FDT"},{"$f":"Répartition!F123","v":"Thème"},null,"FDT",{"$f":"Répartition!G123","v":"Médaille d'Or FDT"},{"$f":"Répartition!H123","v":"Thème"},null,"FDT",{"$f":"Répartition!I123","v":"Médaille d'Or FDT"},{"$f":"Répartition!J123","v":"Thème"},null,null,null,null,null,{"$f":"#REF!&#REF!","v":{"$error":"#REF!"}},110]
[5,null,null,null,null,null,"FDT",{"$f":"Répartition!E124","v":"Médaille d'Argent FDT"},{"$f":"Répartition!F124","v":"Couleur"},null,"FDT",{"$f":"Répartition!G124","v":"Médaille d'Argent FDT"},{"$f":"Répartition!H124","v":"Couleur"},null,"FDT",{"$f":"Répartition!I124","v":"Médaille d'Argent FDT"},{"$f":"Répartition!J124","v":"Couleur"},null,null,null,null,null,{"$f":"#REF!&#REF!","v":{"$error":"#REF!"}},111]
[6,null,null,null,null,null,"FDT",{"$f":"Répartition!E125","v":"Médaille d'Argent FDT"},{"$f":"Répartition!F125","v":"Nature"},null,"FDT",{"$f":"Répartition!G125","v":"Médaille d'Argent FDT"},{"$f":"Répartition!H125","v":"Nature"},null,"FDT",{"$f":"Répartition!I125","v":"Médaille d'Argent FDT"},{"$f":"Répartition!J125","v":"Nature"},null,null,null,null,null,{"$f":"#REF!&#REF!","v":{"$error":"#REF!"}},112]
[7,null,null,null,null,null,"FDT",{"$f":"Répartition!E126","v":"Médaille d'Argent FDT"},{"$f":"Répartition!F126","v":"Monochrome"},null,"FDT",{"$f":"Répartition!G126","v":"Médaille d'Argent FDT"},{"$f":"Répartition!H126","v":"Monochrome"},null,"FDT",{"$f":"Répartition!I126","v":"Médaille d'Argent FDT"},{"$f":"Répartition!J126","v":"Monochrome"},null,null,null,null,null,{"$f":"#REF!&#REF!","v":{"$error":"#REF!"}},113]
[8,null,null,null,null,null,"FDT",{"$f":"Répartition!E127","v":"Médaille d'Argent FDT"},{"$f":"Répartition!F127","v":"Thème"},null,"FDT",{"$f":"Répartition!G127","v":"Médaille d'Argent FDT"},{"$f":"Répartition!H127","v":"Thème"},null,"FDT",{"$f":"Répartition!I127","v":"Médaille d'Argent FDT"},{"$f":"Répartition!J127","v":"Thème"},null,null,null,null,null,{"$f":"#REF!&#REF!","v":{"$error":"#REF!"}},114]
[9,null,null,null,null,null,"FDT",{"$f":"Répartition!E128","v":"Médaille de Bronze FDT"},{"$f":"Répartition!F128","v":"Couleur"},null,"FDT",{"$f":"Répartition!G128","v":"Médaille de Bronze FDT"},{"$f":"Répartition!H128","v":"Couleur"},null,"FDT",{"$f":"Répartition!I128","v":"Médaille de Bronze FDT"},{"$f":"Répartition!J128","v":"Couleur"},null,null,null,null,null,{"$f":"#REF!&#REF!","v":{"$error":"#REF!"}},115]
[10,null,null,null,null,null,"FDT",{"$f":"Répartition!E129","v":"Médaille de Bronze FDT"},{"$f":"Répartition!F129","v":"Nature"},null,"FDT",{"$f":"Répartition!G129","v":"Médaille de Bronze FDT"},{"$f":"Répartition!H129","v":"Nature"},null,"FDT",{"$f":"Répartition!I129","v":"Médaille de Bronze FDT"},{"$f":"Répartition!J129","v":"Nature"},null,null,null,null,null,{"$f":"#REF!&#REF!","v":{"$error":"#REF!"}},116]
[11,null,null,null,null,null,"FDT",{"$f":"Répartition!E130","v":"Médaille de Bronze FDT"},{"$f":"Répartition!F130","v":"Monochrome"},null,"FDT",{"$f":"Répartition!G130","v":"Médaille de Bronze FDT"},{"$f":"Répartition!H130","v":"Monochrome"},null,"FDT",{"$f":"Répartition!I130","v":"Médaille de Bronze FDT"},{"$f":"Répartition!J130","v":"Monochrome"},null,null,null,null,null,{"$f":"#REF!&#REF!","v":{"$error":"#REF!"}},117]
[12,null,null,null,null,null,"FDT",{"$f":"Répartition!E131","v":"Médaille de Bronze FDT"},{"$f":"Répartition!F131","v":"Thème"},null,"FDT",{"$f":"Répartition!G131","v":"Médaille de Bronze FDT"},{"$f":"Répartition!H131","v":"Thème"},null,"FDT",{"$f":"Répartition!I131","v":"Médaille de Bronze FDT"},{"$f":"Répartition!J131","v":"Thème"},null,null,null,null,null,{"$f":"T23&U23","v":"Médaille de La GacilyThème"},118]
[13,null,null,null,null,null,"FDT",{"$f":"Répartition!E132","v":"Diplôme FDT"},{"$f":"Répartition!F132","v":"Couleur"},null,"FDT",{"$f":"Répartition!G132","v":"Diplôme FDT"},{"$f":"Répartition!H132","v":"Couleur"},null,"FDT",{"$f":"Répartition!I132","v":"Diplôme FDT"},{"$f":"Répartition!J132","v":"Couleur"},null,null,null,null,null,{"$f":"T24&U24","v":"Médaille prix de la ville de Saint GervaisThème"},119]
[14,null,null,null,null,null,"FDT",{"$f":"Répartition!E133","v":"Diplôme FDT"},{"$f":"Répartition!F133","v":"Nature"},null,"FDT",{"$f":"Répartition!G133","v":"Diplôme FDT"},{"$f":"Répartition!H133","v":"Nature"},null,"FDT",{"$f":"Répartition!I133","v":"Diplôme FDT"},{"$f":"Répartition!J133","v":"Nature"},null,null,null,null,null,{"$f":"T25&U25","v":"Médaille prix du Conseil Général  du GardMonochrome"},120]
[15,null,null,null,null,null,"FDT",{"$f":"Répartition!E134","v":"Diplôme FDT"},{"$f":"Répartition!F134","v":"Monochrome"},null,"FDT",{"$f":"Répartition!G134","v":"Diplôme FDT"},{"$f":"Répartition!H134","v":"Monochrome"},null,"FDT",{"$f":"Répartition!I134","v":"Diplôme FDT"},{"$f":"Répartition!J134","v":"Monochrome"},null,null,null,null,null,{"$f":"T26&U26","v":"Diplôme FDT : Prix ACBMCouleur"},121]
[16,null,null,null,null,null,"FDT",{"$f":"Répartition!E135","v":"Diplôme FDT"},{"$f":"Répartition!F135","v":"Thème"},null,"FDT",{"$f":"Répartition!G135","v":"Diplôme FDT"},{"$f":"Répartition!H135","v":"Thème"},null,"FDT",{"$f":"Répartition!I135","v":"Diplôme FDT"},{"$f":"Répartition!J135","v":"Thème"},null,null,null,null,null,{"$f":"T27&U27","v":"Diplôme FDT : Prix P.C Bagnols MarcouleNature"},122]
[17,null,null,null,null,null,"FDT",{"$f":"Répartition!E136","v":"Diplôme FDT"},{"$f":"Répartition!F136","v":"Couleur"},null,"FDT",{"$f":"Répartition!G136","v":"Diplôme FDT"},{"$f":"Répartition!H136","v":"Couleur"},null,"FDT",{"$f":"Répartition!I136","v":"Diplôme FDT"},{"$f":"Répartition!J136","v":"Couleur"}]
[18,null,null,null,null,null,"FDT",{"$f":"Répartition!E137","v":"Diplôme FDT"},{"$f":"Répartition!F137","v":"Nature"},null,"FDT",{"$f":"Répartition!G137","v":"Diplôme FDT"},{"$f":"Répartition!H137","v":"Nature"},null,"FDT",{"$f":"Répartition!I137","v":"Diplôme FDT"},{"$f":"Répartition!J137","v":"Nature"}]
[19,null,null,null,null,null,"FDT",{"$f":"Répartition!E138","v":"Diplôme FDT"},{"$f":"Répartition!F138","v":"Monochrome"},null,"FDT",{"$f":"Répartition!G138","v":"Diplôme FDT"},{"$f":"Répartition!H138","v":"Monochrome"},null,"FDT",{"$f":"Répartition!I138","v":"Diplôme FDT"},{"$f":"Répartition!J138","v":"Monochrome"}]
[20,null,null,null,null,null,"FDT",{"$f":"Répartition!E139","v":"Diplôme FDT"},{"$f":"Répartition!F139","v":"Thème"},null,"FDT",{"$f":"Répartition!G139","v":"Diplôme FDT"},{"$f":"Répartition!H139","v":"Thème"},null,"FDT",{"$f":"Répartition!I139","v":"Diplôme FDT"},{"$f":"Répartition!J139","v":"Thème"}]
[21,null,null,null,null,null,"FDT",{"$f":"Répartition!E140","v":"Diplôme FDT"},{"$f":"Répartition!F140","v":"Couleur"},null,"FDT",{"$f":"Répartition!G140","v":"Diplôme FDT"},{"$f":"Répartition!H140","v":"Couleur"},null,"FDT",{"$f":"Répartition!I140","v":"Diplôme FDT"},{"$f":"Répartition!J140","v":"Couleur"}]
[22,null,null,null,null,null,"FDT",{"$f":"Répartition!E141","v":"Diplôme FDT"},{"$f":"Répartition!F141","v":"Nature"},null,"FDT",{"$f":"Répartition!G141","v":"Diplôme FDT"},{"$f":"Répartition!H141","v":"Nature"},null,"FDT",{"$f":"Répartition!I141","v":"Diplôme FDT"},{"$f":"Répartition!J141","v":"Nature"}]
[23,null,null,null,null,null,"FDT",{"$f":"Répartition!E142","v":"Diplôme FDT"},{"$f":"Répartition!F142","v":"Monochrome"},null,"FDT",{"$f":"Répartition!G142","v":"Diplôme FDT"},{"$f":"Répartition!H142","v":"Monochrome"},null,"FDT",{"$f":"Répartition!I142","v":"Diplôme FDT"},{"$f":"Répartition!J142","v":"Monochrome"}]
[24,null,null,null,null,null,"FDT",{"$f":"Répartition!E143","v":"Diplôme FDT"},{"$f":"Répartition!F143","v":"Thème"},null,"FDT",{"$f":"Répartition!G143","v":"Diplôme FDT"},{"$f":"Répartition!H143","v":"Thème"},null,"FDT",{"$f":"Répartition!I143","v":"Diplôme FDT"},{"$f":"Répartition!J143","v":"Thème"}]
[1,null,null,null,null,null,"Spéciale",{"$f":"Répartition!E144","v":"Médaille du Conseil Régional"},{"$f":"Répartition!F144","v":"Couleur"},null,"Spéciale",{"$f":"Répartition!G144","v":"Médaille de La Gacily"},{"$f":"Répartition!H144","v":"Couleur"},null,"Spéciale",{"$f":"Répartition!I144","v":"Diplôme FDT : Prix ACBM"},{"$f":"Répartition!J144","v":"Couleur"}]
[2,null,null,null,null,null,"Spéciale",{"$f":"Répartition!E145","v":"Médaille du Conseil Régional"},{"$f":"Répartition!F145","v":"Nature"},null,"Spéciale",{"$f":"Répartition!G145","v":"Médaille de La Gacily"},{"$f":"Répartition!H145","v":"Nature"},null,"Spéciale",{"$f":"Répartition!I145","v":"Diplôme FDT : Prix P.C Bagnols Marcoule"},{"$f":"Répartition!J145","v":"Nature"}]
[3,null,null,null,null,null,"Spéciale",{"$f":"Répartition!E146","v":"Médaille du Conseil Régional"},{"$f":"Répartition!F146","v":"Monochrome"},null,"Spéciale",{"$f":"Répartition!G146","v":"Médaille de La Gacily"},{"$f":"Répartition!H146","v":"Monochrome"},null,"Spéciale",{"$f":"Répartition!I146","v":"Médaille prix du Conseil Général  du Gard"},{"$f":"Répartition!J146","v":"Monochrome"}]
[4,null,null,null,null,null,"Spéciale",{"$f":"Répartition!E147","v":"Médaille du Conseil Régional"},{"$f":"Répartition!F147","v":"Thème"},null,"Spéciale",{"$f":"Répartition!G147","v":"Médaille de La Gacily"},{"$f":"Répartition!H147","v":"Thème"},null,"Spéciale",{"$f":"Répartition!I147","v":"Médaille prix de la ville de Saint Gervais"},{"$f":"Répartition!J147","v":"Thème"}]

{"sheet":"Récompenses Commandées","index":3,"n_rows":28,"n_cols":16,"rows_kept":28,"cut":false,"hidden":false,"merged":[[1,1,1,8],[3,1,3,2],[16,1,16,2]]}
[]
[null,"Médailles 2023"]
[]
[null,"Médailles reçues"]
[null,null,"Trophée","Pin's","Médaille Or","Mèdaille Ar","Médaille Bz","Rubans","Diplôme",null,"Reçu"]
[]
[null,"FPF",4,null,8,8,8,"*-*-*-",56,{"$f":"SUM(C7:I7)","v":84},{"$f":"IF(J7=J20,\"OK\",\"KO\")","v":"OK"},null,null,"Spéciale","Diplôme FDT : Prix ACBM","Couleur"]
[null,"FIAP","*-*-*-",4,16,16,16,112,"*-*-*-",164,"OK",null,null,"Spéciale","Diplôme FDT : Prix P.C Bagnols Marcoule","Nature"]
[null,"PSA","*-*-*-",null,16,16,16,32,"*-*-*-",80,"OK",null,null,"Spéciale","Médaille de La Gacily","Thème"]
[null,"GPU(UPI)","*-*-*-","*-*-*-",4,4,4,24,"*-*-*-",36,"OK",null,null,"FIAP","Médaille d'Or FIAP","Couleur"]
[null,"ISF","*-*-*-","*-*-*-",4,4,4,"*-*-*-",48,60,"OK",null,null,"FIAP","Médaille d'Or FIAP","Monochrome"]
[null,"FDT","*-*-*-","*-*-*-",16,16,16,"*-*-*-",48,96,"OK",null,null,"FIAP","Médaille d'Or FIAP","Nature"]
[null,null,null,null,"LEG","SAC","LAG","BAG",null,null,{"$f":"IF(J13=J26,\"OK\",\"KO\")","v":"OK"},null,null,"FIAP","Médaille d'Or FIAP","Thème"]
[null,"DIVERS",null,null,8,4,4,4,null,{"$f":"SUM(C14:H14)","v":20},"OK",null,null,"PSA","Médaille d'Or PSA","Couleur"]
[null,null,null,null,null,null,null,null,null,{"$f":"SUM(J7:J14)","v":540},null,null,null,"PSA","Médaille d'Or PSA","Monochrome"]
[null,null,null,null,null,null,null,null,null,null,null,null,null,"PSA","Médaille d'Or PSA","Nature"]
[null,"Médailles commandées",null,null,null,null,null,null,null,null,null,null,null,"PSA","Médaille d'Or PSA","Thème"]
[null,null,"Trophée","Pin's","Médaille Or","Mèdaille Ar","Médaille Bz","Rubans","Diplôme",null,null,null,null,"Spéciale","Médaille prix de la ville de Saint Gervais","Thème"]
[null,null,null,null,null,null,null,null,null,null,null,null,null,"Spéciale","Médaille prix du Conseil Général  du Gard","Monochrome"]
[null,"FPF",4,"*-*-*-",8,8,8,"*-*-*-",56,{"$f":"SUM(C20:I20)","v":84},84,null,null,"FIAP","Pins FIAP au meilleur Auteur du Salon","*-*-*-*"]
[null,"FIAP","*-*-*-",4,16,16,16,112,"*-*-*-",{"$f":"SUM(D21:I21)","v":164},164,null,null,"FPF","Trophée FPF : Meilleur Auteur français","*-*-*-*"]
[null,"PSA","*-*-*-","*-*-*-",16,16,16,32,"*-*-*-",{"$f":"SUM(E22:I22)","v":80},176]
[null,"GPU","*-*-*-","*-*-*-",4,4,4,24,"*-*-*-",{"$f":"SUM(E23:I23)","v":36},44]
[null,"ISF","*-*-*-","*-*-*-",4,4,4,"*-*-*-",48,{"$f":"SUM(E24:I24)","v":60},60]
[null,"FDT","*-*-*-","*-*-*-",16,16,16,"*-*-*-",48,{"$f":"SUM(E25:I25)","v":96},96]
[null,null,null,null,"LEG","SAC","LAG","BAG",null,null,0]
[null,"Spéciale",null,null,8,4,4,4,null,{"$f":"SUM(E27:I27)","v":20},16]
[null,null,null,null,null,null,null,null,"Total",{"$f":"SUM(J20:J27)","v":540},{"$f":"SUM(K20:K27)","v":640}]